Workbook

Sheet 0 - INSTRUÇÕES

Sheet 1 - BDI
B2: NOME DA EMPRESA PARTICIPANTE DO CERTAME
B3: COMPOSIÇÃO ANALÍTICA DO B.D.I. (BENEFÍCIOS E DESPESAS INDIRETAS) - SERVIÇOS
B4: MUNICÍPIO: SÃO LOURENÇO DO SUL
B5: OBRA: ADUTORA / RESERVATÓRIO / REDE DE DISTRIBUIÇÃO
F6: 1º Quartil | G6: VALOR DA PROPOSTA | H6: 3º Quartil
B7: ITEM | C7: DISCRIMINAÇÃO | D7: TOTAL
B10: 1 | C10: DESPESAS INDIRETAS - DI
B11: 1.1 | C11: Administração Central | D11: =G11 -> 0.051 | F11: 0.0343 | G11: 0.051 | H11: 0.0671
B13: 2 | C13: DESPESAS EVENTUAIS E RISCOS - DE
B14: 2.1 | C14: Risco | D14: =G14 -> 0.0065 | F14: 0.01 | G14: 0.0065 | H14: 0.0174
B15: 2.2 | C15: Seguro de Responsabilidade Civil | D15: =G15 -> 0.0024 | F15: 0 | G15: 0.0024 | H15: 0.0075
B16: 2.3 | C16: Custo Financeiro da Caução | D16: =G16 -> 0.0021 | F16: 0 | G16: 0.0021 | H16: 0.0075
B18: 3 | C18: DESPESAS FINANCEIRAS - DF
B19: 3.1 | C19: Despesas Financeiras | D19: =G19 -> 0.01 | F19: 0.0094 | G19: 0.01 | H19: 0.0117
B21: 4 | C21: LUCRO BRUTO - LB
B22: 4.1 | C22: Lucro Bruto | D22: =G22 -> 0.091 | F22: 0.0674 | G22: 0.091 | H22: 0.094
B24: 5 | C24: DESPESAS LEGAIS - DL
B25: 5.1 | C25: ISS | D25: =G25 -> 0.02 | F25: 0.02 | G25: 0.02 | H25: 0.03
B26: 5.2 | C26: PIS | D26: =G26 -> 0.0065 | F26: 0.0065 | G26: 0.0065 | H26: 0.0065
B27: 5.3 | C27: COFINS | D27: =G27 -> 0.03 | F27: 0.03 | G27: 0.03 | H27: 0.03
B28: 5.4 | C28: CIENTEC | D28: =G28 -> 0 | F28: 0 | G28: 0 | H28: 0.01
B29: 5.5 | C29: DESONERAÇÃO (MEDIDA PROV. 601/2012) | D29: =G29 -> 0 | F29: 0 | H29: 0.045
C42: MEMÓRIA DE CÁLCULO
C43: (1 + DI + DE) | D43: =1+D11+D14+D15+D16 -> 1.062
C44: (1 + DF) | D44: =1+D19 -> 1.01
C45: (1 + LB) | D45: =1+D22 -> 1.091
C46: (1 + (DI + DE) x (1 + DF) x (1 + LB) | D46: =D43*D44*D45 -> 1.17022842
C47: (1 - DL) | D47: =1-D25-D26-D27-D28-D29 -> 0.9435
C48: (((1 + (DI + DE) x (1 + DF) x (1 + LB)) / (1 - DL)) - 1 | D48: =(D46/D47-1) -> 0.2403056916
B51: BDI ( % ) | D51: =ROUND(D48*100,1) -> 24
B55: COMPOSIÇÃO ANALÍTICA DO B.D.I. (BENEFÍCIOS E DESPESAS INDIRETAS) - MATERIAIS
B56: MUNICÍPIO: SÃO LOURENÇO DO SUL
B57: OBRA: ADUTORA / RESERVATÓRIO / REDE DE DISTRIBUIÇÃO
F58: 1º Quartil | G58: VALOR DA PROPOSTA | H58: 3º Quartil
B59: ITEM | C59: DISCRIMINAÇÃO | D59: TOTAL
B62: 1 | C62: DESPESAS INDIRETAS - DI
B63: 1.1 | C63: Administração Central | D63: =G63 -> 0.04 | F63: 0.015 | G63: 0.04 | H63: 0.0449
B65: 2 | C65: DESPESAS EVENTUAIS E RISCOS - DE
B66: 2.1 | C66: Risco | D66: =G66 -> 0.005 | F66: 0.0056 | G66: 0.005 | H66: 0.0089
B67: 2.2 | C67: Seguro de Responsabilidade Civil | D67: =G67 -> 0.0024 | F67: 0 | G67: 0.0024 | H67: 0.0082
B68: 2.3 | C68: Custo Financeiro da Caução | D68: =G68 -> 0.0021 | F68: 0 | G68: 0.0021 | H68: 0.0082
B70: 3 | C70: DESPESAS FINANCEIRAS - DF
B71: 3.1 | C71: Despesas Financeiras | D71: =G71 -> 0.01 | F71: 0.0085 | G71: 0.01 | H71: 0.0111
B73: 4 | C73: LUCRO BRUTO - LB
B74: 4.1 | C74: Lucro Bruto | D74: =G74 -> 0.059 | F74: 0.035 | G74: 0.059 | H74: 0.0622
B76: 5 | C76: DESPESAS LEGAIS - DL
B77: 5.1 | C77: ISS | D77: =G77 -> 0 | F77: 0 | G77: 0 | H77: 0
B78: 5.2 | C78: PIS | D78: =G78 -> 0.0065 | F78: 0.0065 | G78: 0.0065 | H78: 0.0065
B79: 5.3 | C79: COFINS | D79: =G79 -> 0.03 | F79: 0.03 | G79: 0.03 | H79: 0.03
B80: 5.4 | C80: CIENTEC | D80: =G80 -> 0 | F80: 0 | G80: 0 | H80: 0.01
B81: 5.5 | C81: DESONERAÇÃO (MEDIDA PROV. 601/2012) | D81: =G81 -> 0 | F81: 0 | H81: 0.045
C94: MEMÓRIA DE CÁLCULO
C95: (1 + DI + DE) | D95: =1+D63+D66+D67+D68 -> 1.0495
C96: (1 + DF) | D96: =1+D71 -> 1.01
C97: (1 + LB) | D97: =1+D74 -> 1.059
C98: (1 + (DI + DE) x (1 + DF) x (1 + LB) | D98: =D95*D96*D97 -> 1.122534705
C99: (1 - DL) | D99: =1-D77-D78-D79-D80-D81 -> 0.9635
C100: (((1 + (DI + DE) x (1 + DF) x (1 + LB)) / (1 - DL)) - 1 | D100: =(D98/D99-1) -> 0.1650593721
B103: BDI ( % ) | D103: =ROUND(D100*100,1) -> 16.5

Sheet 2 - POB
B2: NOME DA EMPRESA PARTICIPANTE DO CERTAME | M2: B.D.I. para Serviços | N2: =IF('1 - BDI'!D51/100=0.038,"BDI não preenchido",'1 - BDI'!D51/100) -> 0.24
B3: PLANILHA DE ORÇAMENTO BÁSICO | M3: B.D.I. para Materiais | N3: =IF('1 - BDI'!D103/100=0.038,"BDI não preenchido",'1 - BDI'!D103/100) -> 0.165
B4: MUNICÍPIO: SÃO LOURENÇO DO SUL | F4: I - SERVIÇOS PRELIMINARES
B5: OBRA: ADUTORA / RESERVATÓRIO / REDE DE DISTRIBUIÇÃO
B6: ITEM | C6: DISCRIMINAÇÃO | D6: CÓDIGO | E6: UN | F6: QTDE | G6: CUSTO | I6: B.D.I. APLICADO | J6: PREÇO | M6: CUSTO PROPOSTO | N6: B.D.I. (%) | O6: PREÇO PROPOSTO | P6: PREÇO MÁXIMO ADMISSÍVEL PARA ESTA LICITAÇÃO | R6: PERCENTUAL
G7: (SEM B.D.I.) | J7: (COM B.D.I.)
G8: UNITÁRIO | H8: TOTAL | J8: UNITÁRIO | K8: TOTAL | P8: UNITÁRIO | Q8: TOTAL
B10: 1 | C10: CANTEIRO DE OBRAS | D10: 01.00.00.00 | E10: 0 | G10: =ROUND(M10,2) -> 0 | H10: =ROUND(F10*G10,2) -> 0 | I10: =ROUND(N10,4) -> 0 | J10: =IF(ROUND(O10,2)>P10,"Reduzir Valor ",ROUND(O10,2)) -> 0 | K10: =IF(J10="Reduzir Valor ","Reduzir Valor ",ROUND(F10*J10,2)) -> 0 | L10: + | M10: 0 | O10: =ROUND(M10*(1+N10),2) -> 0 | R10: =IF(P10="","",O10/P10) -> 
B11: 1.1 | C11: Construção do Canteiro | D11: 01.01.00.00 | E11: 0 | G11: =ROUND(M11,2) -> 0 | H11: =ROUND(F11*G11,2) -> 0 | I11: =ROUND(N11,4) -> 0 | J11: =IF(ROUND(O11,2)>P11,"Reduzir Valor ",ROUND(O11,2)) -> 0 | K11: =IF(J11="Reduzir Valor ","Reduzir Valor ",ROUND(F11*J11,2)) -> 0 | L11: + | M11: 0 | O11: =ROUND(M11*(1+N11),2) -> 0 | R11: =IF(P11="","",O11/P11) -> 
B12: 1.1.1 | C12: Ligação provisória de água e esgotos | D12: 01.01.00.10 | E12: un | F12: 1 | G12: =ROUND(M12,2) -> 533.64 | H12: =ROUND(F12*G12,2) -> 533.64 | I12: =ROUND(N12,4) -> 0.24 | J12: =IF(ROUND(O12,2)>P12,"Reduzir Valor ",ROUND(O12,2)) -> 661.71 | K12: =IF(J12="Reduzir Valor ","Reduzir Valor ",ROUND(F12*J12,2)) -> 661.71 | L12: + | M12: 533.64 | N12: =$N$2 -> 0.24 | O12: =ROUND(M12*(1+N12),2) -> 661.71 | P12: 661.71 | Q12: 661.71 | R12: =IF(P12="","",O12/P12) -> 1
B13: 1.1.2 | C13: Ligação provisória de força e luz | D13: 01.01.00.12 | E13: un | F13: 1 | G13: =ROUND(M13,2) -> 1778.21 | H13: =ROUND(F13*G13,2) -> 1778.21 | I13: =ROUND(N13,4) -> 0.24 | J13: =IF(ROUND(O13,2)>P13,"Reduzir Valor ",ROUND(O13,2)) -> 2204.98 | K13: =IF(J13="Reduzir Valor ","Reduzir Valor ",ROUND(F13*J13,2)) -> 2204.98 | L13: + | M13: 1778.21 | N13: =$N$2 -> 0.24 | O13: =ROUND(M13*(1+N13),2) -> 2204.98 | P13: 2204.98 | Q13: 2204.98 | R13: =IF(P13="","",O13/P13) -> 1
B14: 1.1.3 | C14: Ponto de água externo | D14: 01.01.00.14 | E14: un | F14: 1 | G14: =ROUND(M14,2) -> 167.16 | H14: =ROUND(F14*G14,2) -> 167.16 | I14: =ROUND(N14,4) -> 0.24 | J14: =IF(ROUND(O14,2)>P14,"Reduzir Valor ",ROUND(O14,2)) -> 207.28 | K14: =IF(J14="Reduzir Valor ","Reduzir Valor ",ROUND(F14*J14,2)) -> 207.28 | L14: + | M14: 167.16 | N14: =$N$2 -> 0.24 | O14: =ROUND(M14*(1+N14),2) -> 207.28 | P14: 207.28 | Q14: 207.28 | R14: =IF(P14="","",O14/P14) -> 1
B15: 1.1.4 | C15: Ponto de luz externo | D15: 01.01.00.16 | E15: un | F15: 3 | G15: =ROUND(M15,2) -> 224.93 | H15: =ROUND(F15*G15,2) -> 674.79 | I15: =ROUND(N15,4) -> 0.24 | J15: =IF(ROUND(O15,2)>P15,"Reduzir Valor ",ROUND(O15,2)) -> 278.91 | K15: =IF(J15="Reduzir Valor ","Reduzir Valor ",ROUND(F15*J15,2)) -> 836.73 | L15: + | M15: 224.93 | N15: =$N$2 -> 0.24 | O15: =ROUND(M15*(1+N15),2) -> 278.91 | P15: 278.91 | Q15: 836.73 | R15: =IF(P15="","",O15/P15) -> 1
B16: 1.1.5 | C16: Escritório módulo básico 15 m² | D16: 01.01.00.20 | E16: un | F16: 1 | G16: =ROUND(M16,2) -> 10771.34 | H16: =ROUND(F16*G16,2) -> 10771.34 | I16: =ROUND(N16,4) -> 0.24 | J16: =IF(ROUND(O16,2)>P16,"Reduzir Valor ",ROUND(O16,2)) -> 13356.46 | K16: =IF(J16="Reduzir Valor ","Reduzir Valor ",ROUND(F16*J16,2)) -> 13356.46 | L16: + | M16: 10771.34 | N16: =$N$2 -> 0.24 | O16: =ROUND(M16*(1+N16),2) -> 13356.46 | P16: 13356.46 | Q16: 13356.46 | R16: =IF(P16="","",O16/P16) -> 1
B17: 1.1.6 | C17: Almoxarifado módulo básico 10 m² | D17: 01.01.00.30 | E17: un | F17: 1 | G17: =ROUND(M17,2) -> 5352.24 | H17: =ROUND(F17*G17,2) -> 5352.24 | I17: =ROUND(N17,4) -> 0.24 | J17: =IF(ROUND(O17,2)>P17,"Reduzir Valor ",ROUND(O17,2)) -> 6636.78 | K17: =IF(J17="Reduzir Valor ","Reduzir Valor ",ROUND(F17*J17,2)) -> 6636.78 | L17: + | M17: 5352.24 | N17: =$N$2 -> 0.24 | O17: =ROUND(M17*(1+N17),2) -> 6636.78 | P17: 6636.78 | Q17: 6636.78 | R17: =IF(P17="","",O17/P17) -> 1
B18: 1.1.7 | C18: Almoxarifado módulo adicional 10 m² | D18: 01.01.00.31 | E18: un | F18: 1 | G18: =ROUND(M18,2) -> 5330.25 | H18: =ROUND(F18*G18,2) -> 5330.25 | I18: =ROUND(N18,4) -> 0.24 | J18: =IF(ROUND(O18,2)>P18,"Reduzir Valor ",ROUND(O18,2)) -> 6609.51 | K18: =IF(J18="Reduzir Valor ","Reduzir Valor ",ROUND(F18*J18,2)) -> 6609.51 | L18: + | M18: 5330.25 | N18: =$N$2 -> 0.24 | O18: =ROUND(M18*(1+N18),2) -> 6609.51 | P18: 6609.51 | Q18: 6609.51 | R18: =IF(P18="","",O18/P18) -> 1
B19: 1.1.8 | C19: Telheiro módulo básico 20 m² | D19: 01.01.00.40 | E19: un | F19: 1 | G19: =ROUND(M19,2) -> 2270.03 | H19: =ROUND(F19*G19,2) -> 2270.03 | I19: =ROUND(N19,4) -> 0.24 | J19: =IF(ROUND(O19,2)>P19,"Reduzir Valor ",ROUND(O19,2)) -> 2814.84 | K19: =IF(J19="Reduzir Valor ","Reduzir Valor ",ROUND(F19*J19,2)) -> 2814.84 | L19: + | M19: 2270.03 | N19: =$N$2 -> 0.24 | O19: =ROUND(M19*(1+N19),2) -> 2814.84 | P19: 2814.84 | Q19: 2814.84 | R19: =IF(P19="","",O19/P19) -> 1
B20: 1.1.9 | C20: Telheiro módulo adicional 10 m² | D20: 01.01.00.41 | E20: un | F20: 1 | G20: =ROUND(M20,2) -> 991.98 | H20: =ROUND(F20*G20,2) -> 991.98 | I20: =ROUND(N20,4) -> 0.24 | J20: =IF(ROUND(O20,2)>P20,"Reduzir Valor ",ROUND(O20,2)) -> 1230.06 | K20: =IF(J20="Reduzir Valor ","Reduzir Valor ",ROUND(F20*J20,2)) -> 1230.06 | L20: + | M20: 991.98 | N20: =$N$2 -> 0.24 | O20: =ROUND(M20*(1+N20),2) -> 1230.06 | P20: 1230.06 | Q20: 1230.06 | R20: =IF(P20="","",O20/P20) -> 1
B21: 1.1.10 | C21: Alojamento módulo básico 10 m² | D21: 01.01.00.42 | E21: un | F21: 2 | G21: =ROUND(M21,2) -> 3713.56 | H21: =ROUND(F21*G21,2) -> 7427.12 | I21: =ROUND(N21,4) -> 0.24 | J21: =IF(ROUND(O21,2)>P21,"Reduzir Valor ",ROUND(O21,2)) -> 4604.81 | K21: =IF(J21="Reduzir Valor ","Reduzir Valor ",ROUND(F21*J21,2)) -> 9209.62 | L21: + | M21: 3713.56 | N21: =$N$2 -> 0.24 | O21: =ROUND(M21*(1+N21),2) -> 4604.81 | P21: 4604.81 | Q21: 9209.62 | R21: =IF(P21="","",O21/P21) -> 1
B22: 1.1.11 | C22: Refeitório módulo básico 40 m² | D22: 01.01.00.44 | E22: un | F22: 1 | G22: =ROUND(M22,2) -> 15077.7 | H22: =ROUND(F22*G22,2) -> 15077.7 | I22: =ROUND(N22,4) -> 0.24 | J22: =IF(ROUND(O22,2)>P22,"Reduzir Valor ",ROUND(O22,2)) -> 18696.35 | K22: =IF(J22="Reduzir Valor ","Reduzir Valor ",ROUND(F22*J22,2)) -> 18696.35 | L22: + | M22: 15077.7 | N22: =$N$2 -> 0.24 | O22: =ROUND(M22*(1+N22),2) -> 18696.35 | P22: 18696.35 | Q22: 18696.35 | R22: =IF(P22="","",O22/P22) -> 1
B23: 1.1.12 | C23: Refeitório módulo adicional 10 m² | D23: 01.01.00.45 | E23: un | F23: 1 | G23: =ROUND(M23,2) -> 3768.85 | H23: =ROUND(F23*G23,2) -> 3768.85 | I23: =ROUND(N23,4) -> 0.24 | J23: =IF(ROUND(O23,2)>P23,"Reduzir Valor ",ROUND(O23,2)) -> 4673.37 | K23: =IF(J23="Reduzir Valor ","Reduzir Valor ",ROUND(F23*J23,2)) -> 4673.37 | L23: + | M23: 3768.85 | N23: =$N$2 -> 0.24 | O23: =ROUND(M23*(1+N23),2) -> 4673.37 | P23: 4673.37 | Q23: 4673.37 | R23: =IF(P23="","",O23/P23) -> 1
B24: 1.1.13 | C24: Sanitário módulo 15 m² para 20 pessoas | D24: 01.01.00.48 | E24: un | F24: 1 | G24: =ROUND(M24,2) -> 9635.02 | H24: =ROUND(F24*G24,2) -> 9635.02 | I24: =ROUND(N24,4) -> 0.24 | J24: =IF(ROUND(O24,2)>P24,"Reduzir Valor ",ROUND(O24,2)) -> 11947.42 | K24: =IF(J24="Reduzir Valor ","Reduzir Valor ",ROUND(F24*J24,2)) -> 11947.42 | L24: + | M24: 9635.02 | N24: =$N$2 -> 0.24 | O24: =ROUND(M24*(1+N24),2) -> 11947.42 | P24: 11947.42 | Q24: 11947.42 | R24: =IF(P24="","",O24/P24) -> 1
B25: 1.1.14 | C25: Sanitário módulo 10 m² para 12 pessoas | D25: 01.01.00.49 | E25: un | F25: 1 | G25: =ROUND(M25,2) -> 6396.77 | H25: =ROUND(F25*G25,2) -> 6396.77 | I25: =ROUND(N25,4) -> 0.24 | J25: =IF(ROUND(O25,2)>P25,"Reduzir Valor ",ROUND(O25,2)) -> 7931.99 | K25: =IF(J25="Reduzir Valor ","Reduzir Valor ",ROUND(F25*J25,2)) -> 7931.99 | L25: + | M25: 6396.77 | N25: =$N$2 -> 0.24 | O25: =ROUND(M25*(1+N25),2) -> 7931.99 | P25: 7931.99 | Q25: 7931.99 | R25: =IF(P25="","",O25/P25) -> 1
B26: 1.1.15 | C26: Guarita módulo 5 m² | D26: 01.01.00.50 | E26: un | F26: 1 | G26: =ROUND(M26,2) -> 3951.41 | H26: =ROUND(F26*G26,2) -> 3951.41 | I26: =ROUND(N26,4) -> 0.24 | J26: =IF(ROUND(O26,2)>P26,"Reduzir Valor ",ROUND(O26,2)) -> 4899.75 | K26: =IF(J26="Reduzir Valor ","Reduzir Valor ",ROUND(F26*J26,2)) -> 4899.75 | L26: + | M26: 3951.41 | N26: =$N$2 -> 0.24 | O26: =ROUND(M26*(1+N26),2) -> 4899.75 | P26: 4899.75 | Q26: 4899.75 | R26: =IF(P26="","",O26/P26) -> 1
B27: 1.1.16 | C27: Tapume de vedação padrão | D27: 01.01.00.60 | E27: m2 | F27: 8 | G27: =ROUND(M27,2) -> 53.77 | H27: =ROUND(F27*G27,2) -> 430.16 | I27: =ROUND(N27,4) -> 0.24 | J27: =IF(ROUND(O27,2)>P27,"Reduzir Valor ",ROUND(O27,2)) -> 66.67 | K27: =IF(J27="Reduzir Valor ","Reduzir Valor ",ROUND(F27*J27,2)) -> 533.36 | L27: + | M27: 53.77 | N27: =$N$2 -> 0.24 | O27: =ROUND(M27*(1+N27),2) -> 66.67 | P27: 66.67 | Q27: 533.36 | R27: =IF(P27="","",O27/P27) -> 1
B28: 1.1.17 | C28: Cerca padrão para canteiro de obra | D28: 01.01.00.70 | E28: m | F28: 102 | G28: =ROUND(M28,2) -> 24.08 | H28: =ROUND(F28*G28,2) -> 2456.16 | I28: =ROUND(N28,4) -> 0.24 | J28: =IF(ROUND(O28,2)>P28,"Reduzir Valor ",ROUND(O28,2)) -> 29.86 | K28: =IF(J28="Reduzir Valor ","Reduzir Valor ",ROUND(F28*J28,2)) -> 3045.72 | L28: + | M28: 24.08 | N28: =$N$2 -> 0.24 | O28: =ROUND(M28*(1+N28),2) -> 29.86 | P28: 29.86 | Q28: 3045.72 | R28: =IF(P28="","",O28/P28) -> 1
B29: 1.1.18 | C29: Portão padrão Corsan P2 | D29: 16.01.01.02 | E29: pç | F29: 1 | G29: =ROUND(M29,2) -> 4072.36 | H29: =ROUND(F29*G29,2) -> 4072.36 | I29: =ROUND(N29,4) -> 0.24 | J29: =IF(ROUND(O29,2)>P29,"Reduzir Valor ",ROUND(O29,2)) -> 5049.73 | K29: =IF(J29="Reduzir Valor ","Reduzir Valor ",ROUND(F29*J29,2)) -> 5049.73 | L29: + | M29: 4072.36 | N29: =$N$2 -> 0.24 | O29: =ROUND(M29*(1+N29),2) -> 5049.73 | P29: 5049.73 | Q29: 5049.73 | R29: =IF(P29="","",O29/P29) -> 1
B31: 1.2 | C31: Placas de Obra | D31: 01.02.00.00 | E31: 0 | G31: =ROUND(M31,2) -> 0 | H31: =ROUND(F31*G31,2) -> 0 | I31: =ROUND(N31,4) -> 0 | J31: =IF(ROUND(O31,2)>P31,"Reduzir Valor ",ROUND(O31,2)) -> 0 | K31: =IF(J31="Reduzir Valor ","Reduzir Valor ",ROUND(F31*J31,2)) -> 0 | L31: + | M31: 0 | O31: =ROUND(M31*(1+N31),2) -> 0 | R31: =IF(P31="","",O31/P31) -> 
B32: 1.2.1 | C32: Placa da Corsan - 6m² | D32: 01.02.00.03 | E32: un | F32: 1 | G32: =ROUND(M32,2) -> 1564.98 | H32: =ROUND(F32*G32,2) -> 1564.98 | I32: =ROUND(N32,4) -> 0.24 | J32: =IF(ROUND(O32,2)>P32,"Reduzir Valor ",ROUND(O32,2)) -> 1940.58 | K32: =IF(J32="Reduzir Valor ","Reduzir Valor ",ROUND(F32*J32,2)) -> 1940.58 | L32: + | M32: 1564.98 | N32: =$N$2 -> 0.24 | O32: =ROUND(M32*(1+N32),2) -> 1940.58 | P32: 1940.58 | Q32: 1940.58 | R32: =IF(P32="","",O32/P32) -> 1
B33: 1.2.2 | C33: Placa de licenciamento ambiental - 2 m² | D33: 01.02.00.07 | E33: un | F33: 1 | G33: =ROUND(M33,2) -> 521.66 | H33: =ROUND(F33*G33,2) -> 521.66 | I33: =ROUND(N33,4) -> 0.24 | J33: =IF(ROUND(O33,2)>P33,"Reduzir Valor ",ROUND(O33,2)) -> 646.86 | K33: =IF(J33="Reduzir Valor ","Reduzir Valor ",ROUND(F33*J33,2)) -> 646.86 | L33: + | M33: 521.66 | N33: =$N$2 -> 0.24 | O33: =ROUND(M33*(1+N33),2) -> 646.86 | P33: 646.86 | Q33: 646.86 | R33: =IF(P33="","",O33/P33) -> 1
B35: 1.3 | C35: Mobilização e Desmobilização | D35: 01.03.00.00 | E35: 0 | G35: =ROUND(M35,2) -> 0 | H35: =ROUND(F35*G35,2) -> 0 | I35: =ROUND(N35,4) -> 0 | J35: =IF(ROUND(O35,2)>P35,"Reduzir Valor ",ROUND(O35,2)) -> 0 | K35: =IF(J35="Reduzir Valor ","Reduzir Valor ",ROUND(F35*J35,2)) -> 0 | L35: + | M35: 0 | O35: =ROUND(M35*(1+N35),2) -> 0 | R35: =IF(P35="","",O35/P35) -> 
B36: 1.3.1 | C36: Mobilização | D36: 01.03.00.10 | E36: un | F36: 1 | G36: =ROUND(M36,2) -> 8919.37 | H36: =ROUND(F36*G36,2) -> 8919.37 | I36: =ROUND(N36,4) -> 0.24 | J36: =IF(ROUND(O36,2)>P36,"Reduzir Valor ",ROUND(O36,2)) -> 11060.02 | K36: =IF(J36="Reduzir Valor ","Reduzir Valor ",ROUND(F36*J36,2)) -> 11060.02 | L36: + | M36: 8919.37 | N36: =$N$2 -> 0.24 | O36: =ROUND(M36*(1+N36),2) -> 11060.02 | P36: 11060.02 | Q36: 11060.02 | R36: =IF(P36="","",O36/P36) -> 1
B37: 1.3.2 | C37: Desmobilização | D37: 01.03.00.20 | E37: un | F37: 1 | G37: =ROUND(M37,2) -> 5675.96 | H37: =ROUND(F37*G37,2) -> 5675.96 | I37: =ROUND(N37,4) -> 0.24 | J37: =IF(ROUND(O37,2)>P37,"Reduzir Valor ",ROUND(O37,2)) -> 7038.19 | K37: =IF(J37="Reduzir Valor ","Reduzir Valor ",ROUND(F37*J37,2)) -> 7038.19 | L37: + | M37: 5675.96 | N37: =$N$2 -> 0.24 | O37: =ROUND(M37*(1+N37),2) -> 7038.19 | P37: 7038.19 | Q37: 7038.19 | R37: =IF(P37="","",O37/P37) -> 1
B40: RAZÃO SOCIAL DO PROPONENTE: | F40: RESPONSÁVEL PROPONENTE: | J40: DATA
B41: MUNICÍPIO: SÃO LOURENÇO DO SUL | F41: I - SERVIÇOS PRELIMINARES
B42: OBRA: ADUTORA / RESERVATÓRIO / REDE DE DISTRIBUIÇÃO
B43: ITEM | C43: DISCRIMINAÇÃO | D43: CÓDIGO | E43: UN | F43: QTDE | G43: CUSTO | I43: B.D.I. APLICADO | J43: PREÇO | M43: CUSTO PROPOSTO | N43: B.D.I. (%) | O43: PREÇO PROPOSTO | P43: PREÇO MÁXIMO ADMISSÍVEL PARA ESTA LICITAÇÃO | R43: PERCENTUAL
G44: (SEM B.D.I.) | J44: (COM B.D.I.)
G45: UNITÁRIO | H45: TOTAL | J45: UNITÁRIO | K45: TOTAL | P45: UNITÁRIO | Q45: TOTAL
B47: 1.4 | C47: Operação e Supervisão do Canteiro | D47: 01.04.00.00 | E47: 0 | G47: =ROUND(M47,2) -> 0 | H47: =ROUND(F47*G47,2) -> 0 | I47: =ROUND(N47,4) -> 0 | J47: =IF(ROUND(O47,2)>P47,"Reduzir Valor ",ROUND(O47,2)) -> 0 | K47: =IF(J47="Reduzir Valor ","Reduzir Valor ",ROUND(F47*J47,2)) -> 0 | L47: + | M47: 0 | O47: =ROUND(M47*(1+N47),2) -> 0 | R47: =IF(P47="","",O47/P47) -> 
B48: 1.4.1 | C48: Carga e descarga de entulho | D48: 01.04.01.10 | E48: m3 | F48: 72 | G48: =ROUND(M48,2) -> 6.12 | H48: =ROUND(F48*G48,2) -> 440.64 | I48: =ROUND(N48,4) -> 0.24 | J48: =IF(ROUND(O48,2)>P48,"Reduzir Valor ",ROUND(O48,2)) -> 7.59 | K48: =IF(J48="Reduzir Valor ","Reduzir Valor ",ROUND(F48*J48,2)) -> 546.48 | L48: + | M48: 6.12 | N48: =$N$2 -> 0.24 | O48: =ROUND(M48*(1+N48),2) -> 7.59 | P48: 7.59 | Q48: 546.48 | R48: =IF(P48="","",O48/P48) -> 1
B49: 1.4.2 | C49: Transporte de entulho a 10 km | D49: 01.04.01.30 | E49: m3 | F49: 72 | G49: =ROUND(M49,2) -> 8.79 | H49: =ROUND(F49*G49,2) -> 632.88 | I49: =ROUND(N49,4) -> 0.24 | J49: =IF(ROUND(O49,2)>P49,"Reduzir Valor ",ROUND(O49,2)) -> 10.9 | K49: =IF(J49="Reduzir Valor ","Reduzir Valor ",ROUND(F49*J49,2)) -> 784.8 | L49: + | M49: 8.79 | N49: =$N$2 -> 0.24 | O49: =ROUND(M49*(1+N49),2) -> 10.9 | P49: 10.9 | Q49: 784.8 | R49: =IF(P49="","",O49/P49) -> 1
B76: I - SERVIÇOS PRELIMINARES | F76: TOTAL SEM B.D.I. | H76: =SUM(H12:H74) -> 98840.68 | I76: TOTAL COM B.D.I. | K76: =SUM(K12:K74) -> 122562.59
B77: RAZÃO SOCIAL DO PROPONENTE: | F77: RESPONSÁVEL PROPONENTE: | J77: DATA
B78: MUNICÍPIO: SÃO LOURENÇO DO SUL | F78: II - ADMINISTRAÇÃO LOCAL E GERENCIAMENTO AMBIENTAL
B79: OBRA: ADUTORA / RESERVATÓRIO / REDE DE DISTRIBUIÇÃO
B80: ITEM | C80: DISCRIMINAÇÃO | D80: CÓDIGO | E80: UN | F80: QTDE | G80: CUSTO | I80: B.D.I. APLICADO | J80: PREÇO | M80: CUSTO PROPOSTO | N80: B.D.I. (%) | O80: PREÇO PROPOSTO | P80: PREÇO MÁXIMO ADMISSÍVEL PARA ESTA LICITAÇÃO | R80: PERCENTUAL
G81: (SEM B.D.I.) | J81: (COM B.D.I.)
G82: UNITÁRIO | H82: TOTAL | J82: UNITÁRIO | K82: TOTAL | P82: UNITÁRIO | Q82: TOTAL
B84: 1 | C84: CANTEIRO DE OBRAS | D84: 01.00.00.00 | E84: 0 | G84: =ROUND(M84,2) -> 0 | H84: =ROUND(F84*G84,2) -> 0 | I84: =ROUND(N84,4) -> 0 | J84: =IF(ROUND(O84,2)>P84,"Reduzir Valor ",ROUND(O84,2)) -> 0 | K84: =IF(J84="Reduzir Valor ","Reduzir Valor ",ROUND(F84*J84,2)) -> 0 | L84: + | M84: 0 | O84: =ROUND(M84*(1+N84),2) -> 0 | R84: =IF(P84="","",O84/P84) -> 
B85: 1.1 | C85: Operação e Supervisão do Canteiro | D85: 01.04.00.00 | E85: 0 | G85: =ROUND(M85,2) -> 0 | H85: =ROUND(F85*G85,2) -> 0 | I85: =ROUND(N85,4) -> 0 | J85: =IF(ROUND(O85,2)>P85,"Reduzir Valor ",ROUND(O85,2)) -> 0 | K85: =IF(J85="Reduzir Valor ","Reduzir Valor ",ROUND(F85*J85,2)) -> 0 | L85: + | M85: 0 | O85: =ROUND(M85*(1+N85),2) -> 0 | R85: =IF(P85="","",O85/P85) -> 
B86: 1.1.1 | C86: Administração local | D86: 01.04.02.10 | E86: un | F86: 1 | G86: =ROUND(M86,2) -> 132025.68 | H86: =ROUND(F86*G86,2) -> 132025.68 | I86: =ROUND(N86,4) -> 0.24 | J86: =IF(ROUND(O86,2)>P86,"Reduzir Valor ",ROUND(O86,2)) -> 163711.84 | K86: =IF(J86="Reduzir Valor ","Reduzir Valor ",ROUND(F86*J86,2)) -> 163711.84 | L86: + | M86: 132025.68 | N86: =$N$2 -> 0.24 | O86: =ROUND(M86*(1+N86),2) -> 163711.84 | P86: 163711.84 | Q86: 163711.84 | R86: =IF(P86="","",O86/P86) -> 1
B88: 2 | C88: GERENCIAMENTO AMBIENTAL | D88: 19.00.00.00 | E88: 0 | G88: =ROUND(M88,2) -> 0 | H88: =ROUND(F88*G88,2) -> 0 | I88: =ROUND(N88,4) -> 0 | J88: =IF(ROUND(O88,2)>P88,"Reduzir Valor ",ROUND(O88,2)) -> 0 | K88: =IF(J88="Reduzir Valor ","Reduzir Valor ",ROUND(F88*J88,2)) -> 0 | L88: + | M88: 0 | O88: =ROUND(M88*(1+N88),2) -> 0 | R88: =IF(P88="","",O88/P88) -> 
B89: 2.1 | C89: Serviços Técnicos | D89: 19.01.00.00 | E89: 0 | G89: =ROUND(M89,2) -> 0 | H89: =ROUND(F89*G89,2) -> 0 | I89: =ROUND(N89,4) -> 0 | J89: =IF(ROUND(O89,2)>P89,"Reduzir Valor ",ROUND(O89,2)) -> 0 | K89: =IF(J89="Reduzir Valor ","Reduzir Valor ",ROUND(F89*J89,2)) -> 0 | L89: + | M89: 0 | O89: =ROUND(M89*(1+N89),2) -> 0 | R89: =IF(P89="","",O89/P89) -> 
B90: 2.1.1 | C90: Atendimento das condicionantes ambientais III | D90: 19.01.01.03 | E90: eq | F90: 1 | G90: =ROUND(M90,2) -> 45410.88 | H90: =ROUND(F90*G90,2) -> 45410.88 | I90: =ROUND(N90,4) -> 0.24 | J90: =IF(ROUND(O90,2)>P90,"Reduzir Valor ",ROUND(O90,2)) -> 56309.49 | K90: =IF(J90="Reduzir Valor ","Reduzir Valor ",ROUND(F90*J90,2)) -> 56309.49 | L90: + | M90: 45410.88 | N90: =$N$2 -> 0.24 | O90: =ROUND(M90*(1+N90),2) -> 56309.49 | P90: 56309.49 | Q90: 56309.49 | R90: =IF(P90="","",O90/P90) -> 1
B113: II - ADMINISTRAÇÃO LOCAL E GERENCIAMENTO AMBIENTAL | F113: TOTAL SEM B.D.I. | H113: =SUM(H84:H111) -> 177436.56 | I113: TOTAL COM B.D.I. | K113: =SUM(K84:K111) -> 220021.33
B114: RAZÃO SOCIAL DO PROPONENTE: | F114: RESPONSÁVEL PROPONENTE: | J114: DATA
B115: MUNICÍPIO: SÃO LOURENÇO DO SUL | F115: III - ADUTORA
B116: OBRA: ADUTORA / RESERVATÓRIO / REDE DE DISTRIBUIÇÃO
B117: ITEM | C117: DISCRIMINAÇÃO | D117: CÓDIGO | E117: UN | F117: QTDE | G117: CUSTO | I117: B.D.I. APLICADO | J117: PREÇO | M117: CUSTO PROPOSTO | N117: B.D.I. (%) | O117: PREÇO PROPOSTO | P117: PREÇO MÁXIMO ADMISSÍVEL PARA ESTA LICITAÇÃO | R117: PERCENTUAL
G118: (SEM B.D.I.) | J118: (COM B.D.I.)
G119: UNITÁRIO | H119: TOTAL | J119: UNITÁRIO | K119: TOTAL | P119: UNITÁRIO | Q119: TOTAL
B121: 1 | C121: SERVIÇOS TÉCNICOS | D121: 02.00.00.00 | E121: 0 | G121: =ROUND(M121,2) -> 0 | H121: =ROUND(F121*G121,2) -> 0 | I121: =ROUND(N121,4) -> 0 | J121: =IF(ROUND(O121,2)>P121,"Reduzir Valor ",ROUND(O121,2)) -> 0 | K121: =IF(J121="Reduzir Valor ","Reduzir Valor ",ROUND(F121*J121,2)) -> 0 | L121: + | M121: 0 | O121: =ROUND(M121*(1+N121),2) -> 0 | R121: =IF(P121="","",O121/P121) -> 
B122: 1.1 | C122: Locação e Cadastro | D122: 02.04.00.00 | E122: 0 | G122: =ROUND(M122,2) -> 0 | H122: =ROUND(F122*G122,2) -> 0 | I122: =ROUND(N122,4) -> 0 | J122: =IF(ROUND(O122,2)>P122,"Reduzir Valor ",ROUND(O122,2)) -> 0 | K122: =IF(J122="Reduzir Valor ","Reduzir Valor ",ROUND(F122*J122,2)) -> 0 | L122: + | M122: 0 | O122: =ROUND(M122*(1+N122),2) -> 0 | R122: =IF(P122="","",O122/P122) -> 
B123: 1.1.1 | C123: Locação para obras de condutos forçados | D123: 02.04.01.10 | E123: m | F123: 13657 | G123: =ROUND(M123,2) -> 0.36 | H123: =ROUND(F123*G123,2) -> 4916.52 | I123: =ROUND(N123,4) -> 0.24 | J123: =IF(ROUND(O123,2)>P123,"Reduzir Valor ",ROUND(O123,2)) -> 0.45 | K123: =IF(J123="Reduzir Valor ","Reduzir Valor ",ROUND(F123*J123,2)) -> 6145.65 | L123: + | M123: 0.36 | N123: =$N$2 -> 0.24 | O123: =ROUND(M123*(1+N123),2) -> 0.45 | P123: 0.45 | Q123: 6145.65 | R123: =IF(P123="","",O123/P123) -> 1
B124: 1.1.2 | C124: Cadastro e desenho para obras de condutos forçados | D124: 02.04.02.10 | E124: m | F124: 13657 | G124: =ROUND(M124,2) -> 0.41 | H124: =ROUND(F124*G124,2) -> 5599.37 | I124: =ROUND(N124,4) -> 0.24 | J124: =IF(ROUND(O124,2)>P124,"Reduzir Valor ",ROUND(O124,2)) -> 0.51 | K124: =IF(J124="Reduzir Valor ","Reduzir Valor ",ROUND(F124*J124,2)) -> 6965.07 | L124: + | M124: 0.41 | N124: =$N$2 -> 0.24 | O124: =ROUND(M124*(1+N124),2) -> 0.51 | P124: 0.51 | Q124: 6965.07 | R124: =IF(P124="","",O124/P124) -> 1
B125: 1.1.3 | C125: Locação e nivelamento de obras localizadas | D125: 02.04.01.40 | E125: m2 | F125: 2 | G125: =ROUND(M125,2) -> 5.43 | H125: =ROUND(F125*G125,2) -> 10.86 | I125: =ROUND(N125,4) -> 0.24 | J125: =IF(ROUND(O125,2)>P125,"Reduzir Valor ",ROUND(O125,2)) -> 6.73 | K125: =IF(J125="Reduzir Valor ","Reduzir Valor ",ROUND(F125*J125,2)) -> 13.46 | L125: + | M125: 5.43 | N125: =$N$2 -> 0.24 | O125: =ROUND(M125*(1+N125),2) -> 6.73 | P125: 6.73 | Q125: 13.46 | R125: =IF(P125="","",O125/P125) -> 1
B126: 1.1.4 | C126: Cadastro e desenho para obras localizadas | D126: 02.04.02.40 | E126: m2 | F126: 2 | G126: =ROUND(M126,2) -> 4.57 | H126: =ROUND(F126*G126,2) -> 9.14 | I126: =ROUND(N126,4) -> 0.24 | J126: =IF(ROUND(O126,2)>P126,"Reduzir Valor ",ROUND(O126,2)) -> 5.67 | K126: =IF(J126="Reduzir Valor ","Reduzir Valor ",ROUND(F126*J126,2)) -> 11.34 | L126: + | M126: 4.57 | N126: =$N$2 -> 0.24 | O126: =ROUND(M126*(1+N126),2) -> 5.67 | P126: 5.67 | Q126: 11.34 | R126: =IF(P126="","",O126/P126) -> 1
B128: 2 | C128: SERVIÇOS PRELIMINARES | D128: 03.00.00.00 | E128: 0 | G128: =ROUND(M128,2) -> 0 | H128: =ROUND(F128*G128,2) -> 0 | I128: =ROUND(N128,4) -> 0 | J128: =IF(ROUND(O128,2)>P128,"Reduzir Valor ",ROUND(O128,2)) -> 0 | K128: =IF(J128="Reduzir Valor ","Reduzir Valor ",ROUND(F128*J128,2)) -> 0 | L128: + | M128: 0 | O128: =ROUND(M128*(1+N128),2) -> 0 | R128: =IF(P128="","",O128/P128) -> 
B129: 2.1 | C129: Trânsito e Segurança | D129: 03.02.00.00 | E129: 0 | G129: =ROUND(M129,2) -> 0 | H129: =ROUND(F129*G129,2) -> 0 | I129: =ROUND(N129,4) -> 0 | J129: =IF(ROUND(O129,2)>P129,"Reduzir Valor ",ROUND(O129,2)) -> 0 | K129: =IF(J129="Reduzir Valor ","Reduzir Valor ",ROUND(F129*J129,2)) -> 0 | L129: + | M129: 0 | O129: =ROUND(M129*(1+N129),2) -> 0 | R129: =IF(P129="","",O129/P129) -> 
B130: 2.1.1 | C130: Sinalização com cavaletes, placas e cones | D130: 03.02.00.10 | E130: m | F130: 9560 | G130: =ROUND(M130,2) -> 1 | H130: =ROUND(F130*G130,2) -> 9560 | I130: =ROUND(N130,4) -> 0.24 | J130: =IF(ROUND(O130,2)>P130,"Reduzir Valor ",ROUND(O130,2)) -> 1.24 | K130: =IF(J130="Reduzir Valor ","Reduzir Valor ",ROUND(F130*J130,2)) -> 11854.4 | L130: + | M130: 1 | N130: =$N$2 -> 0.24 | O130: =ROUND(M130*(1+N130),2) -> 1.24 | P130: 1.24 | Q130: 11854.4 | R130: =IF(P130="","",O130/P130) -> 1
B131: 2.1.2 | C131: Sinalização luminosa com cavaletes, placas e cones | D131: 03.02.00.20 | E131: m | F131: 4097 | G131: =ROUND(M131,2) -> 2.06 | H131: =ROUND(F131*G131,2) -> 8439.82 | I131: =ROUND(N131,4) -> 0.24 | J131: =IF(ROUND(O131,2)>P131,"Reduzir Valor ",ROUND(O131,2)) -> 2.55 | K131: =IF(J131="Reduzir Valor ","Reduzir Valor ",ROUND(F131*J131,2)) -> 10447.35 | L131: + | M131: 2.06 | N131: =$N$2 -> 0.24 | O131: =ROUND(M131*(1+N131),2) -> 2.55 | P131: 2.55 | Q131: 10447.35 | R131: =IF(P131="","",O131/P131) -> 1
B132: 2.1.3 | C132: Tela plástica (PVC/PEAD) laranja, para sinalização e isolamento, incluso estrutura de fixação | D132: 03.02.00.35 | E132: m | F132: 27314 | G132: =ROUND(M132,2) -> 1.03 | H132: =ROUND(F132*G132,2) -> 28133.42 | I132: =ROUND(N132,4) -> 0.24 | J132: =IF(ROUND(O132,2)>P132,"Reduzir Valor ",ROUND(O132,2)) -> 1.28 | K132: =IF(J132="Reduzir Valor ","Reduzir Valor ",ROUND(F132*J132,2)) -> 34961.92 | L132: + | M132: 1.03 | N132: =$N$2 -> 0.24 | O132: =ROUND(M132*(1+N132),2) -> 1.28 | P132: 1.28 | Q132: 34961.92 | R132: =IF(P132="","",O132/P132) -> 1
B133: 2.1.4 | C133: Passadiço de aço, espessura 3/4" - 2,00 x 1,00 m | D133: 03.02.00.50 | E133: un | F133: 21 | G133: =ROUND(M133,2) -> 161.93 | H133: =ROUND(F133*G133,2) -> 3400.53 | I133: =ROUND(N133,4) -> 0.24 | J133: =IF(ROUND(O133,2)>P133,"Reduzir Valor ",ROUND(O133,2)) -> 200.79 | K133: =IF(J133="Reduzir Valor ","Reduzir Valor ",ROUND(F133*J133,2)) -> 4216.59 | L133: + | M133: 161.93 | N133: =$N$2 -> 0.24 | O133: =ROUND(M133*(1+N133),2) -> 200.79 | P133: 200.79 | Q133: 4216.59 | R133: =IF(P133="","",O133/P133) -> 1
B134: 2.1.5 | C134: Instalações sanitárias móveis para obras lineares | D134: 03.02.00.60 | E134: m | F134: 13657 | G134: =ROUND(M134,2) -> 0.45 | H134: =ROUND(F134*G134,2) -> 6145.65 | I134: =ROUND(N134,4) -> 0.24 | J134: =IF(ROUND(O134,2)>P134,"Reduzir Valor ",ROUND(O134,2)) -> 0.56 | K134: =IF(J134="Reduzir Valor ","Reduzir Valor ",ROUND(F134*J134,2)) -> 7647.92 | L134: + | M134: 0.45 | N134: =$N$2 -> 0.24 | O134: =ROUND(M134*(1+N134),2) -> 0.56 | P134: 0.56 | Q134: 7647.92 | R134: =IF(P134="","",O134/P134) -> 1
B136: 2.2 | C136: Remanejamento de Interferência | D136: 03.06.00.00 | E136: 0 | G136: =ROUND(M136,2) -> 0 | H136: =ROUND(F136*G136,2) -> 0 | I136: =ROUND(N136,4) -> 0 | J136: =IF(ROUND(O136,2)>P136,"Reduzir Valor ",ROUND(O136,2)) -> 0 | K136: =IF(J136="Reduzir Valor ","Reduzir Valor ",ROUND(F136*J136,2)) -> 0 | L136: + | M136: 0 | O136: =ROUND(M136*(1+N136),2) -> 0 | R136: =IF(P136="","",O136/P136) -> 
B137: 2.2.1 | C137: Execução de tampa de boca de lobo | D137: 03.06.00.21 | E137: un | F137: 2 | G137: =ROUND(M137,2) -> 51.32 | H137: =ROUND(F137*G137,2) -> 102.64 | I137: =ROUND(N137,4) -> 0.24 | J137: =IF(ROUND(O137,2)>P137,"Reduzir Valor ",ROUND(O137,2)) -> 63.64 | K137: =IF(J137="Reduzir Valor ","Reduzir Valor ",ROUND(F137*J137,2)) -> 127.28 | L137: + | M137: 51.32 | N137: =$N$2 -> 0.24 | O137: =ROUND(M137*(1+N137),2) -> 63.64 | P137: 63.64 | Q137: 127.28 | R137: =IF(P137="","",O137/P137) -> 1
B138: 2.2.2 | C138: Remanejamento de rede de água | D138: 03.06.00.22 | E138: m | F138: 27 | G138: =ROUND(M138,2) -> 67.27 | H138: =ROUND(F138*G138,2) -> 1816.29 | I138: =ROUND(N138,4) -> 0.24 | J138: =IF(ROUND(O138,2)>P138,"Reduzir Valor ",ROUND(O138,2)) -> 83.41 | K138: =IF(J138="Reduzir Valor ","Reduzir Valor ",ROUND(F138*J138,2)) -> 2252.07 | L138: + | M138: 67.27 | N138: =$N$2 -> 0.24 | O138: =ROUND(M138*(1+N138),2) -> 83.41 | P138: 83.41 | Q138: 2252.07 | R138: =IF(P138="","",O138/P138) -> 1
B139: 2.2.3 | C139: Conserto de rede de água | D139: 03.06.00.23 | E139: m | F139: 6 | G139: =ROUND(M139,2) -> 35.43 | H139: =ROUND(F139*G139,2) -> 212.58 | I139: =ROUND(N139,4) -> 0.24 | J139: =IF(ROUND(O139,2)>P139,"Reduzir Valor ",ROUND(O139,2)) -> 43.93 | K139: =IF(J139="Reduzir Valor ","Reduzir Valor ",ROUND(F139*J139,2)) -> 263.58 | L139: + | M139: 35.43 | N139: =$N$2 -> 0.24 | O139: =ROUND(M139*(1+N139),2) -> 43.93 | P139: 43.93 | Q139: 263.58 | R139: =IF(P139="","",O139/P139) -> 1
B140: 2.2.4 | C140: Conserto de ramal de água | D140: 03.06.00.24 | E140: m | F140: 21 | G140: =ROUND(M140,2) -> 19.35 | H140: =ROUND(F140*G140,2) -> 406.35 | I140: =ROUND(N140,4) -> 0.24 | J140: =IF(ROUND(O140,2)>P140,"Reduzir Valor ",ROUND(O140,2)) -> 23.99 | K140: =IF(J140="Reduzir Valor ","Reduzir Valor ",ROUND(F140*J140,2)) -> 503.79 | L140: + | M140: 19.35 | N140: =$N$2 -> 0.24 | O140: =ROUND(M140*(1+N140),2) -> 23.99 | P140: 23.99 | Q140: 503.79 | R140: =IF(P140="","",O140/P140) -> 1
B142: 3 | C142: MOVIMENTO DE SOLO | D142: 04.00.00.00 | E142: 0 | G142: =ROUND(M142,2) -> 0 | H142: =ROUND(F142*G142,2) -> 0 | I142: =ROUND(N142,4) -> 0 | J142: =IF(ROUND(O142,2)>P142,"Reduzir Valor ",ROUND(O142,2)) -> 0 | K142: =IF(J142="Reduzir Valor ","Reduzir Valor ",ROUND(F142*J142,2)) -> 0 | L142: + | M142: 0 | O142: =ROUND(M142*(1+N142),2) -> 0 | R142: =IF(P142="","",O142/P142) -> 
B143: 3.1 | C143: Escavação de Solo Localizada | D143: 04.01.00.00 | E143: 0 | G143: =ROUND(M143,2) -> 0 | H143: =ROUND(F143*G143,2) -> 0 | I143: =ROUND(N143,4) -> 0 | J143: =IF(ROUND(O143,2)>P143,"Reduzir Valor ",ROUND(O143,2)) -> 0 | K143: =IF(J143="Reduzir Valor ","Reduzir Valor ",ROUND(F143*J143,2)) -> 0 | L143: + | M143: 0 | O143: =ROUND(M143*(1+N143),2) -> 0 | R143: =IF(P143="","",O143/P143) -> 
B144: 3.1.1 | C144: Escavação localizada manual, solo 0-2 m | D144: 04.01.01.42 | E144: m3 | F144: 4 | G144: =ROUND(M144,2) -> 36.41 | H144: =ROUND(F144*G144,2) -> 145.64 | I144: =ROUND(N144,4) -> 0.24 | J144: =IF(ROUND(O144,2)>P144,"Reduzir Valor ",ROUND(O144,2)) -> 45.15 | K144: =IF(J144="Reduzir Valor ","Reduzir Valor ",ROUND(F144*J144,2)) -> 180.6 | L144: + | M144: 36.41 | N144: =$N$2 -> 0.24 | O144: =ROUND(M144*(1+N144),2) -> 45.15 | P144: 45.15 | Q144: 180.6 | R144: =IF(P144="","",O144/P144) -> 1
B145: 3.1.2 | C145: Escavação localizada mecânica, solo 0-2 m | D145: 04.01.02.42 | E145: m3 | F145: 18 | G145: =ROUND(M145,2) -> 8.26 | H145: =ROUND(F145*G145,2) -> 148.68 | I145: =ROUND(N145,4) -> 0.24 | J145: =IF(ROUND(O145,2)>P145,"Reduzir Valor ",ROUND(O145,2)) -> 10.24 | K145: =IF(J145="Reduzir Valor ","Reduzir Valor ",ROUND(F145*J145,2)) -> 184.32 | L145: + | M145: 8.26 | N145: =$N$2 -> 0.24 | O145: =ROUND(M145*(1+N145),2) -> 10.24 | P145: 10.24 | Q145: 184.32 | R145: =IF(P145="","",O145/P145) -> 1
B147: 3.2 | C147: Escavação de Solo Valas | D147: 04.02.00.00 | E147: 0 | G147: =ROUND(M147,2) -> 0 | H147: =ROUND(F147*G147,2) -> 0 | I147: =ROUND(N147,4) -> 0 | J147: =IF(ROUND(O147,2)>P147,"Reduzir Valor ",ROUND(O147,2)) -> 0 | K147: =IF(J147="Reduzir Valor ","Reduzir Valor ",ROUND(F147*J147,2)) -> 0 | L147: + | M147: 0 | O147: =ROUND(M147*(1+N147),2) -> 0 | R147: =IF(P147="","",O147/P147) -> 
B148: 3.2.1 | C148: Escavação de valas mecânica, solo 0-2 m | D148: 04.02.02.42 | E148: m3 | F148: 11514 | G148: =ROUND(M148,2) -> 8.55 | H148: =ROUND(F148*G148,2) -> 98444.7 | I148: =ROUND(N148,4) -> 0.24 | J148: =IF(ROUND(O148,2)>P148,"Reduzir Valor ",ROUND(O148,2)) -> 10.6 | K148: =IF(J148="Reduzir Valor ","Reduzir Valor ",ROUND(F148*J148,2)) -> 122048.4 | L148: + | M148: 8.55 | N148: =$N$2 -> 0.24 | O148: =ROUND(M148*(1+N148),2) -> 10.6 | P148: 10.6 | Q148: 122048.4 | R148: =IF(P148="","",O148/P148) -> 1
B151: RAZÃO SOCIAL DO PROPONENTE: | F151: RESPONSÁVEL PROPONENTE: | J151: DATA
B152: MUNICÍPIO: SÃO LOURENÇO DO SUL | F152: III - ADUTORA
B153: OBRA: ADUTORA / RESERVATÓRIO / REDE DE DISTRIBUIÇÃO
B154: ITEM | C154: DISCRIMINAÇÃO | D154: CÓDIGO | E154: UN | F154: QTDE | G154: CUSTO | I154: B.D.I. APLICADO | J154: PREÇO | M154: CUSTO PROPOSTO | N154: B.D.I. (%) | O154: PREÇO PROPOSTO | P154: PREÇO MÁXIMO ADMISSÍVEL PARA ESTA LICITAÇÃO | R154: PERCENTUAL
G155: (SEM B.D.I.) | J155: (COM B.D.I.)
G156: UNITÁRIO | H156: TOTAL | J156: UNITÁRIO | K156: TOTAL | P156: UNITÁRIO | Q156: TOTAL
B158: 3.3 | C158: Aterro, Reaterro, Lastro, Espalhamento e Nivelamento | D158: 04.09.00.00 | E158: 0 | G158: =ROUND(M158,2) -> 0 | H158: =ROUND(F158*G158,2) -> 0 | I158: =ROUND(N158,4) -> 0 | J158: =IF(ROUND(O158,2)>P158,"Reduzir Valor ",ROUND(O158,2)) -> 0 | K158: =IF(J158="Reduzir Valor ","Reduzir Valor ",ROUND(F158*J158,2)) -> 0 | L158: + | M158: 0 | O158: =ROUND(M158*(1+N158),2) -> 0 | R158: =IF(P158="","",O158/P158) -> 
B159: 3.3.1 | C159: Reenchimento manual apiloado de vala | D159: 04.09.02.02 | E159: m3 | F159: 4296 | G159: =ROUND(M159,2) -> 18.64 | H159: =ROUND(F159*G159,2) -> 80077.44 | I159: =ROUND(N159,4) -> 0.24 | J159: =IF(ROUND(O159,2)>P159,"Reduzir Valor ",ROUND(O159,2)) -> 23.11 | K159: =IF(J159="Reduzir Valor ","Reduzir Valor ",ROUND(F159*J159,2)) -> 99280.56 | L159: + | M159: 18.64 | N159: =$N$2 -> 0.24 | O159: =ROUND(M159*(1+N159),2) -> 23.11 | P159: 23.11 | Q159: 99280.56 | R159: =IF(P159="","",O159/P159) -> 1
B160: 3.3.2 | C160: Areia para aterro/reaterro (inclusive carga e descarga) | D160: 04.09.02.03 | E160: m3 | F160: 4296 | G160: =ROUND(M160,2) -> 53.44 | H160: =ROUND(F160*G160,2) -> 229578.24 | I160: =ROUND(N160,4) -> 0.24 | J160: =IF(ROUND(O160,2)>P160,"Reduzir Valor ",ROUND(O160,2)) -> 66.27 | K160: =IF(J160="Reduzir Valor ","Reduzir Valor ",ROUND(F160*J160,2)) -> 284695.92 | L160: + | M160: 53.44 | N160: =$N$2 -> 0.24 | O160: =ROUND(M160*(1+N160),2) -> 66.27 | P160: 66.27 | Q160: 284695.92 | R160: =IF(P160="","",O160/P160) -> 1
B161: 3.3.3 | C161: Argila para aterro/reaterro (inclusive carga e descarga) | D161: 04.09.02.09 | E161: m3 | F161: 640 | G161: =ROUND(M161,2) -> 20.51 | H161: =ROUND(F161*G161,2) -> 13126.4 | I161: =ROUND(N161,4) -> 0.24 | J161: =IF(ROUND(O161,2)>P161,"Reduzir Valor ",ROUND(O161,2)) -> 25.43 | K161: =IF(J161="Reduzir Valor ","Reduzir Valor ",ROUND(F161*J161,2)) -> 16275.2 | L161: + | M161: 20.51 | N161: =$N$2 -> 0.24 | O161: =ROUND(M161*(1+N161),2) -> 25.43 | P161: 25.43 | Q161: 16275.2 | R161: =IF(P161="","",O161/P161) -> 1
B162: 3.3.4 | C162: Reenchimento mecânico e compactação mecânica de vala, 0-2 m | D162: 04.09.02.22 | E162: m3 | F162: 4458 | G162: =ROUND(M162,2) -> 13.31 | H162: =ROUND(F162*G162,2) -> 59335.98 | I162: =ROUND(N162,4) -> 0.24 | J162: =IF(ROUND(O162,2)>P162,"Reduzir Valor ",ROUND(O162,2)) -> 16.5 | K162: =IF(J162="Reduzir Valor ","Reduzir Valor ",ROUND(F162*J162,2)) -> 73557 | L162: + | M162: 13.31 | N162: =$N$2 -> 0.24 | O162: =ROUND(M162*(1+N162),2) -> 16.5 | P162: 16.5 | Q162: 73557 | R162: =IF(P162="","",O162/P162) -> 1
B163: 3.3.5 | C163: Reenchimento mecânico e compactação mecânica, localizado em pequenas áreas, 0-2 m | D163: 04.09.02.32 | E163: m3 | F163: 19 | G163: =ROUND(M163,2) -> 13.31 | H163: =ROUND(F163*G163,2) -> 252.89 | I163: =ROUND(N163,4) -> 0.24 | J163: =IF(ROUND(O163,2)>P163,"Reduzir Valor ",ROUND(O163,2)) -> 16.5 | K163: =IF(J163="Reduzir Valor ","Reduzir Valor ",ROUND(F163*J163,2)) -> 313.5 | L163: + | M163: 13.31 | N163: =$N$2 -> 0.24 | O163: =ROUND(M163*(1+N163),2) -> 16.5 | P163: 16.5 | Q163: 313.5 | R163: =IF(P163="","",O163/P163) -> 1
B164: 3.3.6 | C164: Lastro de areia - material, compactação, carga e descarga | D164: 04.09.03.01 | E164: m3 | F164: 827 | G164: =ROUND(M164,2) -> 107.79 | H164: =ROUND(F164*G164,2) -> 89142.33 | I164: =ROUND(N164,4) -> 0.24 | J164: =IF(ROUND(O164,2)>P164,"Reduzir Valor ",ROUND(O164,2)) -> 133.66 | K164: =IF(J164="Reduzir Valor ","Reduzir Valor ",ROUND(F164*J164,2)) -> 110536.82 | L164: + | M164: 107.79 | N164: =$N$2 -> 0.24 | O164: =ROUND(M164*(1+N164),2) -> 133.66 | P164: 133.66 | Q164: 110536.82 | R164: =IF(P164="","",O164/P164) -> 1
B165: 3.3.7 | C165: Lastro de brita - material, compactação, carga e descarga | D165: 04.09.03.02 | E165: m3 | F165: 152 | G165: =ROUND(M165,2) -> 126.3 | H165: =ROUND(F165*G165,2) -> 19197.6 | I165: =ROUND(N165,4) -> 0.24 | J165: =IF(ROUND(O165,2)>P165,"Reduzir Valor ",ROUND(O165,2)) -> 156.61 | K165: =IF(J165="Reduzir Valor ","Reduzir Valor ",ROUND(F165*J165,2)) -> 23804.72 | L165: + | M165: 126.3 | N165: =$N$2 -> 0.24 | O165: =ROUND(M165*(1+N165),2) -> 156.61 | P165: 156.61 | Q165: 23804.72 | R165: =IF(P165="","",O165/P165) -> 1
B167: 3.4 | C167: Carga, Transporte, Descarga | D167: 04.10.00.00 | E167: 0 | G167: =ROUND(M167,2) -> 0 | H167: =ROUND(F167*G167,2) -> 0 | I167: =ROUND(N167,4) -> 0 | J167: =IF(ROUND(O167,2)>P167,"Reduzir Valor ",ROUND(O167,2)) -> 0 | K167: =IF(J167="Reduzir Valor ","Reduzir Valor ",ROUND(F167*J167,2)) -> 0 | L167: + | M167: 0 | O167: =ROUND(M167*(1+N167),2) -> 0 | R167: =IF(P167="","",O167/P167) -> 
B168: 3.4.1 | C168: Transporte de solo para empréstimo - 10 km | D168: 04.10.01.50 | E168: m3 | F168: 5915 | G168: =ROUND(M168,2) -> 13.62 | H168: =ROUND(F168*G168,2) -> 80562.3 | I168: =ROUND(N168,4) -> 0.24 | J168: =IF(ROUND(O168,2)>P168,"Reduzir Valor ",ROUND(O168,2)) -> 16.89 | K168: =IF(J168="Reduzir Valor ","Reduzir Valor ",ROUND(F168*J168,2)) -> 99904.35 | L168: + | M168: 13.62 | N168: =$N$2 -> 0.24 | O168: =ROUND(M168*(1+N168),2) -> 16.89 | P168: 16.89 | Q168: 99904.35 | R168: =IF(P168="","",O168/P168) -> 1
B169: 3.4.2 | C169: Carga e descarga de solo para bota-fora | D169: 04.10.02.01 | E169: m3 | F169: 7699 | G169: =ROUND(M169,2) -> 4.38 | H169: =ROUND(F169*G169,2) -> 33721.62 | I169: =ROUND(N169,4) -> 0.24 | J169: =IF(ROUND(O169,2)>P169,"Reduzir Valor ",ROUND(O169,2)) -> 5.43 | K169: =IF(J169="Reduzir Valor ","Reduzir Valor ",ROUND(F169*J169,2)) -> 41805.57 | L169: + | M169: 4.38 | N169: =$N$2 -> 0.24 | O169: =ROUND(M169*(1+N169),2) -> 5.43 | P169: 5.43 | Q169: 41805.57 | R169: =IF(P169="","",O169/P169) -> 1
B170: 3.4.3 | C170: Transporte de solos para bota-fora - 10 km | D170: 04.10.02.20 | E170: m3 | F170: 7699 | G170: =ROUND(M170,2) -> 13.62 | H170: =ROUND(F170*G170,2) -> 104860.38 | I170: =ROUND(N170,4) -> 0.24 | J170: =IF(ROUND(O170,2)>P170,"Reduzir Valor ",ROUND(O170,2)) -> 16.89 | K170: =IF(J170="Reduzir Valor ","Reduzir Valor ",ROUND(F170*J170,2)) -> 130036.11 | L170: + | M170: 13.62 | N170: =$N$2 -> 0.24 | O170: =ROUND(M170*(1+N170),2) -> 16.89 | P170: 16.89 | Q170: 130036.11 | R170: =IF(P170="","",O170/P170) -> 1
B172: 4 | C172: ESCORAMENTO | D172: 05.00.00.00 | E172: 0 | G172: =ROUND(M172,2) -> 0 | H172: =ROUND(F172*G172,2) -> 0 | I172: =ROUND(N172,4) -> 0 | J172: =IF(ROUND(O172,2)>P172,"Reduzir Valor ",ROUND(O172,2)) -> 0 | K172: =IF(J172="Reduzir Valor ","Reduzir Valor ",ROUND(F172*J172,2)) -> 0 | L172: + | M172: 0 | O172: =ROUND(M172*(1+N172),2) -> 0 | R172: =IF(P172="","",O172/P172) -> 
B173: 4.1 | C173: Escoramento Metálico | D173: 05.02.00.00 | E173: 0 | G173: =ROUND(M173,2) -> 0 | H173: =ROUND(F173*G173,2) -> 0 | I173: =ROUND(N173,4) -> 0 | J173: =IF(ROUND(O173,2)>P173,"Reduzir Valor ",ROUND(O173,2)) -> 0 | K173: =IF(J173="Reduzir Valor ","Reduzir Valor ",ROUND(F173*J173,2)) -> 0 | L173: + | M173: 0 | O173: =ROUND(M173*(1+N173),2) -> 0 | R173: =IF(P173="","",O173/P173) -> 
B174: 4.1.1 | C174: Escoramento de valas com pranchões metálicos - área cravada | D174: 05.02.00.30 | E174: m2 | F174: 24 | G174: =ROUND(M174,2) -> 54.61 | H174: =ROUND(F174*G174,2) -> 1310.64 | I174: =ROUND(N174,4) -> 0.24 | J174: =IF(ROUND(O174,2)>P174,"Reduzir Valor ",ROUND(O174,2)) -> 67.72 | K174: =IF(J174="Reduzir Valor ","Reduzir Valor ",ROUND(F174*J174,2)) -> 1625.28 | L174: + | M174: 54.61 | N174: =$N$2 -> 0.24 | O174: =ROUND(M174*(1+N174),2) -> 67.72 | P174: 67.72 | Q174: 1625.28 | R174: =IF(P174="","",O174/P174) -> 1
B175: 4.1.2 | C175: Escoramento continuo metálico, blindagem leve, valas até 2 m | D175: 05.02.00.40 | E175: m2 | F175: 4013 | G175: =ROUND(M175,2) -> 21.08 | H175: =ROUND(F175*G175,2) -> 84594.04 | I175: =ROUND(N175,4) -> 0.24 | J175: =IF(ROUND(O175,2)>P175,"Reduzir Valor ",ROUND(O175,2)) -> 26.14 | K175: =IF(J175="Reduzir Valor ","Reduzir Valor ",ROUND(F175*J175,2)) -> 104899.82 | L175: + | M175: 21.08 | N175: =$N$2 -> 0.24 | O175: =ROUND(M175*(1+N175),2) -> 26.14 | P175: 26.14 | Q175: 104899.82 | R175: =IF(P175="","",O175/P175) -> 1
B177: 5 | C177: ESGOTAMENTO | D177: 06.00.00.00 | E177: 0 | G177: =ROUND(M177,2) -> 0 | H177: =ROUND(F177*G177,2) -> 0 | I177: =ROUND(N177,4) -> 0 | J177: =IF(ROUND(O177,2)>P177,"Reduzir Valor ",ROUND(O177,2)) -> 0 | K177: =IF(J177="Reduzir Valor ","Reduzir Valor ",ROUND(F177*J177,2)) -> 0 | L177: + | M177: 0 | O177: =ROUND(M177*(1+N177),2) -> 0 | R177: =IF(P177="","",O177/P177) -> 
B178: 5.1 | C178: Esgotamento com Bombas | D178: 06.01.00.00 | E178: 0 | G178: =ROUND(M178,2) -> 0 | H178: =ROUND(F178*G178,2) -> 0 | I178: =ROUND(N178,4) -> 0 | J178: =IF(ROUND(O178,2)>P178,"Reduzir Valor ",ROUND(O178,2)) -> 0 | K178: =IF(J178="Reduzir Valor ","Reduzir Valor ",ROUND(F178*J178,2)) -> 0 | L178: + | M178: 0 | O178: =ROUND(M178*(1+N178),2) -> 0 | R178: =IF(P178="","",O178/P178) -> 
B179: 5.1.1 | C179: Esgotamento com bomba auto-escorvante 3,5 HP, a gasolina | D179: 06.01.00.10 | E179: h | F179: 1445 | G179: =ROUND(M179,2) -> 7.82 | H179: =ROUND(F179*G179,2) -> 11299.9 | I179: =ROUND(N179,4) -> 0.24 | J179: =IF(ROUND(O179,2)>P179,"Reduzir Valor ",ROUND(O179,2)) -> 9.7 | K179: =IF(J179="Reduzir Valor ","Reduzir Valor ",ROUND(F179*J179,2)) -> 14016.5 | L179: + | M179: 7.82 | N179: =$N$2 -> 0.24 | O179: =ROUND(M179*(1+N179),2) -> 9.7 | P179: 9.7 | Q179: 14016.5 | R179: =IF(P179="","",O179/P179) -> 1
B181: 6 | C181: FUNDAÇÃO E ESTRUTURA | D181: 08.00.00.00 | E181: 0 | G181: =ROUND(M181,2) -> 0 | H181: =ROUND(F181*G181,2) -> 0 | I181: =ROUND(N181,4) -> 0 | J181: =IF(ROUND(O181,2)>P181,"Reduzir Valor ",ROUND(O181,2)) -> 0 | K181: =IF(J181="Reduzir Valor ","Reduzir Valor ",ROUND(F181*J181,2)) -> 0 | L181: + | M181: 0 | O181: =ROUND(M181*(1+N181),2) -> 0 | R181: =IF(P181="","",O181/P181) -> 
B182: 6.1 | C182: Lastro | D182: 08.03.00.00 | E182: 0 | G182: =ROUND(M182,2) -> 0 | H182: =ROUND(F182*G182,2) -> 0 | I182: =ROUND(N182,4) -> 0 | J182: =IF(ROUND(O182,2)>P182,"Reduzir Valor ",ROUND(O182,2)) -> 0 | K182: =IF(J182="Reduzir Valor ","Reduzir Valor ",ROUND(F182*J182,2)) -> 0 | L182: + | M182: 0 | O182: =ROUND(M182*(1+N182),2) -> 0 | R182: =IF(P182="","",O182/P182) -> 
B183: 6.1.1 | C183: Lastro de concreto consumo mínimo de cimento 250 kg/m³ | D183: 08.03.00.34 | E183: m3 | F183: 1 | G183: =ROUND(M183,2) -> 418.32 | H183: =ROUND(F183*G183,2) -> 418.32 | I183: =ROUND(N183,4) -> 0.24 | J183: =IF(ROUND(O183,2)>P183,"Reduzir Valor ",ROUND(O183,2)) -> 518.72 | K183: =IF(J183="Reduzir Valor ","Reduzir Valor ",ROUND(F183*J183,2)) -> 518.72 | L183: + | M183: 418.32 | N183: =$N$2 -> 0.24 | O183: =ROUND(M183*(1+N183),2) -> 518.72 | P183: 518.72 | Q183: 518.72 | R183: =IF(P183="","",O183/P183) -> 1
B188: RAZÃO SOCIAL DO PROPONENTE: | F188: RESPONSÁVEL PROPONENTE: | J188: DATA
B189: MUNICÍPIO: SÃO LOURENÇO DO SUL | F189: III - ADUTORA
B190: OBRA: ADUTORA / RESERVATÓRIO / REDE DE DISTRIBUIÇÃO
B191: ITEM | C191: DISCRIMINAÇÃO | D191: CÓDIGO | E191: UN | F191: QTDE | G191: CUSTO | I191: B.D.I. APLICADO | J191: PREÇO | M191: CUSTO PROPOSTO | N191: B.D.I. (%) | O191: PREÇO PROPOSTO | P191: PREÇO MÁXIMO ADMISSÍVEL PARA ESTA LICITAÇÃO | R191: PERCENTUAL
G192: (SEM B.D.I.) | J192: (COM B.D.I.)
G193: UNITÁRIO | H193: TOTAL | J193: UNITÁRIO | K193: TOTAL | P193: UNITÁRIO | Q193: TOTAL
B195: 6.2 | C195: Fôrmas e Cimbramentos | D195: 08.04.00.00 | E195: 0 | G195: =ROUND(M195,2) -> 0 | H195: =ROUND(F195*G195,2) -> 0 | I195: =ROUND(N195,4) -> 0 | J195: =IF(ROUND(O195,2)>P195,"Reduzir Valor ",ROUND(O195,2)) -> 0 | K195: =IF(J195="Reduzir Valor ","Reduzir Valor ",ROUND(F195*J195,2)) -> 0 | L195: + | M195: 0 | O195: =ROUND(M195*(1+N195),2) -> 0 | R195: =IF(P195="","",O195/P195) -> 
B196: 6.2.1 | C196: Fôrmas planas para lajes e paredes, com escoramento | D196: 08.04.00.24 | E196: m2 | F196: 16 | G196: =ROUND(M196,2) -> 77.18 | H196: =ROUND(F196*G196,2) -> 1234.88 | I196: =ROUND(N196,4) -> 0.24 | J196: =IF(ROUND(O196,2)>P196,"Reduzir Valor ",ROUND(O196,2)) -> 95.7 | K196: =IF(J196="Reduzir Valor ","Reduzir Valor ",ROUND(F196*J196,2)) -> 1531.2 | L196: + | M196: 77.18 | N196: =$N$2 -> 0.24 | O196: =ROUND(M196*(1+N196),2) -> 95.7 | P196: 95.7 | Q196: 1531.2 | R196: =IF(P196="","",O196/P196) -> 1
B198: 6.3 | C198: Armaduras | D198: 08.05.00.00 | E198: 0 | G198: =ROUND(M198,2) -> 0 | H198: =ROUND(F198*G198,2) -> 0 | I198: =ROUND(N198,4) -> 0 | J198: =IF(ROUND(O198,2)>P198,"Reduzir Valor ",ROUND(O198,2)) -> 0 | K198: =IF(J198="Reduzir Valor ","Reduzir Valor ",ROUND(F198*J198,2)) -> 0 | L198: + | M198: 0 | O198: =ROUND(M198*(1+N198),2) -> 0 | R198: =IF(P198="","",O198/P198) -> 
B199: 6.3.1 | C199: Armadura CA-50, 6,30 mm - Fornecimento, corte (com perda de 7%), dobra e colocação | D199: 08.05.00.23 | E199: kg | F199: 49 | G199: =ROUND(M199,2) -> 9.09 | H199: =ROUND(F199*G199,2) -> 445.41 | I199: =ROUND(N199,4) -> 0.24 | J199: =IF(ROUND(O199,2)>P199,"Reduzir Valor ",ROUND(O199,2)) -> 11.27 | K199: =IF(J199="Reduzir Valor ","Reduzir Valor ",ROUND(F199*J199,2)) -> 552.23 | L199: + | M199: 9.09 | N199: =$N$2 -> 0.24 | O199: =ROUND(M199*(1+N199),2) -> 11.27 | P199: 11.27 | Q199: 552.23 | R199: =IF(P199="","",O199/P199) -> 1
B200: 6.3.2 | C200: Armadura CA-50, 8,00 mm - Fornecimento, corte (com perda de 11%), dobra e colocação | D200: 08.05.00.24 | E200: kg | F200: 37 | G200: =ROUND(M200,2) -> 8.78 | H200: =ROUND(F200*G200,2) -> 324.86 | I200: =ROUND(N200,4) -> 0.24 | J200: =IF(ROUND(O200,2)>P200,"Reduzir Valor ",ROUND(O200,2)) -> 10.89 | K200: =IF(J200="Reduzir Valor ","Reduzir Valor ",ROUND(F200*J200,2)) -> 402.93 | L200: + | M200: 8.78 | N200: =$N$2 -> 0.24 | O200: =ROUND(M200*(1+N200),2) -> 10.89 | P200: 10.89 | Q200: 402.93 | R200: =IF(P200="","",O200/P200) -> 1
B201: 6.3.3 | C201: Armadura CA-50, 10,00 mm - Fornecimento, corte (com perda de 11%), dobra e colocação | D201: 08.05.00.25 | E201: kg | F201: 29 | G201: =ROUND(M201,2) -> 7.12 | H201: =ROUND(F201*G201,2) -> 206.48 | I201: =ROUND(N201,4) -> 0.24 | J201: =IF(ROUND(O201,2)>P201,"Reduzir Valor ",ROUND(O201,2)) -> 8.83 | K201: =IF(J201="Reduzir Valor ","Reduzir Valor ",ROUND(F201*J201,2)) -> 256.07 | L201: + | M201: 7.12 | N201: =$N$2 -> 0.24 | O201: =ROUND(M201*(1+N201),2) -> 8.83 | P201: 8.83 | Q201: 256.07 | R201: =IF(P201="","",O201/P201) -> 1
B202: 6.3.4 | C202: Armadura CA-50, 12,50 mm - Fornecimento, corte (com perda de 11%), dobra e colocação | D202: 08.05.00.26 | E202: kg | F202: 15 | G202: =ROUND(M202,2) -> 6.34 | H202: =ROUND(F202*G202,2) -> 95.1 | I202: =ROUND(N202,4) -> 0.24 | J202: =IF(ROUND(O202,2)>P202,"Reduzir Valor ",ROUND(O202,2)) -> 7.86 | K202: =IF(J202="Reduzir Valor ","Reduzir Valor ",ROUND(F202*J202,2)) -> 117.9 | L202: + | M202: 6.34 | N202: =$N$2 -> 0.24 | O202: =ROUND(M202*(1+N202),2) -> 7.86 | P202: 7.86 | Q202: 117.9 | R202: =IF(P202="","",O202/P202) -> 1
B203: 6.3.5 | C203: Armadura CA-50, 16,00 mm - Fornecimento, corte (com perda de 11%), dobra e colocação | D203: 08.05.00.27 | E203: kg | F203: 5 | G203: =ROUND(M203,2) -> 5.87 | H203: =ROUND(F203*G203,2) -> 29.35 | I203: =ROUND(N203,4) -> 0.24 | J203: =IF(ROUND(O203,2)>P203,"Reduzir Valor ",ROUND(O203,2)) -> 7.28 | K203: =IF(J203="Reduzir Valor ","Reduzir Valor ",ROUND(F203*J203,2)) -> 36.4 | L203: + | M203: 5.87 | N203: =$N$2 -> 0.24 | O203: =ROUND(M203*(1+N203),2) -> 7.28 | P203: 7.28 | Q203: 36.4 | R203: =IF(P203="","",O203/P203) -> 1
B205: 6.4 | C205: Concreto | D205: 08.06.00.00 | E205: 0 | G205: =ROUND(M205,2) -> 0 | H205: =ROUND(F205*G205,2) -> 0 | I205: =ROUND(N205,4) -> 0 | J205: =IF(ROUND(O205,2)>P205,"Reduzir Valor ",ROUND(O205,2)) -> 0 | K205: =IF(J205="Reduzir Valor ","Reduzir Valor ",ROUND(F205*J205,2)) -> 0 | L205: + | M205: 0 | O205: =ROUND(M205*(1+N205),2) -> 0 | R205: =IF(P205="","",O205/P205) -> 
B206: 6.4.1 | C206: Fornecimento concreto usinado bombeado Fck = 30 Mpa, inclusive bombeamento | D206: 08.06.00.90 | E206: m3 | F206: 1 | G206: =ROUND(M206,2) -> 373.07 | H206: =ROUND(F206*G206,2) -> 373.07 | I206: =ROUND(N206,4) -> 0.24 | J206: =IF(ROUND(O206,2)>P206,"Reduzir Valor ",ROUND(O206,2)) -> 462.61 | K206: =IF(J206="Reduzir Valor ","Reduzir Valor ",ROUND(F206*J206,2)) -> 462.61 | L206: + | M206: 373.07 | N206: =$N$2 -> 0.24 | O206: =ROUND(M206*(1+N206),2) -> 462.61 | P206: 462.61 | Q206: 462.61 | R206: =IF(P206="","",O206/P206) -> 1
B207: 6.4.2 | C207: Lançamento, adensamento e acabamento de concreto usinado bombeado | D207: 08.06.00.97 | E207: m3 | F207: 1 | G207: =ROUND(M207,2) -> 26.6 | H207: =ROUND(F207*G207,2) -> 26.6 | I207: =ROUND(N207,4) -> 0.24 | J207: =IF(ROUND(O207,2)>P207,"Reduzir Valor ",ROUND(O207,2)) -> 32.98 | K207: =IF(J207="Reduzir Valor ","Reduzir Valor ",ROUND(F207*J207,2)) -> 32.98 | L207: + | M207: 26.6 | N207: =$N$2 -> 0.24 | O207: =ROUND(M207*(1+N207),2) -> 32.98 | P207: 32.98 | Q207: 32.98 | R207: =IF(P207="","",O207/P207) -> 1
B209: 7 | C209: ASSENTAMENTO, CARGA, DESCARGA E TRANSPORTE | D209: 09.00.00.00 | E209: 0 | G209: =ROUND(M209,2) -> 0 | H209: =ROUND(F209*G209,2) -> 0 | I209: =ROUND(N209,4) -> 0 | J209: =IF(ROUND(O209,2)>P209,"Reduzir Valor ",ROUND(O209,2)) -> 0 | K209: =IF(J209="Reduzir Valor ","Reduzir Valor ",ROUND(F209*J209,2)) -> 0 | L209: + | M209: 0 | O209: =ROUND(M209*(1+N209),2) -> 0 | R209: =IF(P209="","",O209/P209) -> 
B210: 7.1 | C210: Assentamento, Carga, Descarga e Transporte de Tubulação | D210: 09.01.00.00 | E210: 0 | G210: =ROUND(M210,2) -> 0 | H210: =ROUND(F210*G210,2) -> 0 | I210: =ROUND(N210,4) -> 0 | J210: =IF(ROUND(O210,2)>P210,"Reduzir Valor ",ROUND(O210,2)) -> 0 | K210: =IF(J210="Reduzir Valor ","Reduzir Valor ",ROUND(F210*J210,2)) -> 0 | L210: + | M210: 0 | O210: =ROUND(M210*(1+N210),2) -> 0 | R210: =IF(P210="","",O210/P210) -> 
B211: 7.1.1 | C211: Assentamento, carga, descarga e transporte de tubos de ferro fundido DN 150 | D211: 09.01.02.04 | E211: m | F211: 94 | G211: =ROUND(M211,2) -> 6.16 | H211: =ROUND(F211*G211,2) -> 579.04 | I211: =ROUND(N211,4) -> 0.24 | J211: =IF(ROUND(O211,2)>P211,"Reduzir Valor ",ROUND(O211,2)) -> 7.64 | K211: =IF(J211="Reduzir Valor ","Reduzir Valor ",ROUND(F211*J211,2)) -> 718.16 | L211: + | M211: 6.16 | N211: =$N$2 -> 0.24 | O211: =ROUND(M211*(1+N211),2) -> 7.64 | P211: 7.64 | Q211: 718.16 | R211: =IF(P211="","",O211/P211) -> 1
B212: 7.1.2 | C212: Assentamento, carga, descarga e transporte de tubos de PVC DN 150 | D212: 09.01.05.04 | E212: m | F212: 13657 | G212: =ROUND(M212,2) -> 4.35 | H212: =ROUND(F212*G212,2) -> 59407.95 | I212: =ROUND(N212,4) -> 0.24 | J212: =IF(ROUND(O212,2)>P212,"Reduzir Valor ",ROUND(O212,2)) -> 5.39 | K212: =IF(J212="Reduzir Valor ","Reduzir Valor ",ROUND(F212*J212,2)) -> 73611.23 | L212: + | M212: 4.35 | N212: =$N$2 -> 0.24 | O212: =ROUND(M212*(1+N212),2) -> 5.39 | P212: 5.39 | Q212: 73611.23 | R212: =IF(P212="","",O212/P212) -> 1
B214: 8 | C214: PAVIMENTAÇÃO | D214: 10.00.00.00 | E214: 0 | G214: =ROUND(M214,2) -> 0 | H214: =ROUND(F214*G214,2) -> 0 | I214: =ROUND(N214,4) -> 0 | J214: =IF(ROUND(O214,2)>P214,"Reduzir Valor ",ROUND(O214,2)) -> 0 | K214: =IF(J214="Reduzir Valor ","Reduzir Valor ",ROUND(F214*J214,2)) -> 0 | L214: + | M214: 0 | O214: =ROUND(M214*(1+N214),2) -> 0 | R214: =IF(P214="","",O214/P214) -> 
B215: 8.1 | C215: Recomposição de Pavimentos, Guias e Sarjetas | D215: 10.02.00.00 | E215: 0 | G215: =ROUND(M215,2) -> 0 | H215: =ROUND(F215*G215,2) -> 0 | I215: =ROUND(N215,4) -> 0 | J215: =IF(ROUND(O215,2)>P215,"Reduzir Valor ",ROUND(O215,2)) -> 0 | K215: =IF(J215="Reduzir Valor ","Reduzir Valor ",ROUND(F215*J215,2)) -> 0 | L215: + | M215: 0 | O215: =ROUND(M215*(1+N215),2) -> 0 | R215: =IF(P215="","",O215/P215) -> 
B216: 8.1.1 | C216: Recomposição de pavimento de saibro | D216: 10.02.00.01 | E216: m2 | F216: 9800 | G216: =ROUND(M216,2) -> 9.74 | H216: =ROUND(F216*G216,2) -> 95452 | I216: =ROUND(N216,4) -> 0.24 | J216: =IF(ROUND(O216,2)>P216,"Reduzir Valor ",ROUND(O216,2)) -> 12.08 | K216: =IF(J216="Reduzir Valor ","Reduzir Valor ",ROUND(F216*J216,2)) -> 118384 | L216: + | M216: 9.74 | N216: =$N$2 -> 0.24 | O216: =ROUND(M216*(1+N216),2) -> 12.08 | P216: 12.08 | Q216: 118384 | R216: =IF(P216="","",O216/P216) -> 1
B218: 9 | C218: REVESTIMENTO E TRATAMENTO DE SUPERFÍCIES | D218: 13.00.00.00 | E218: 0 | G218: =ROUND(M218,2) -> 0 | H218: =ROUND(F218*G218,2) -> 0 | I218: =ROUND(N218,4) -> 0 | J218: =IF(ROUND(O218,2)>P218,"Reduzir Valor ",ROUND(O218,2)) -> 0 | K218: =IF(J218="Reduzir Valor ","Reduzir Valor ",ROUND(F218*J218,2)) -> 0 | L218: + | M218: 0 | O218: =ROUND(M218*(1+N218),2) -> 0 | R218: =IF(P218="","",O218/P218) -> 
B219: 9.1 | C219: Impermeabilização | D219: 13.02.00.00 | E219: 0 | G219: =ROUND(M219,2) -> 0 | H219: =ROUND(F219*G219,2) -> 0 | I219: =ROUND(N219,4) -> 0 | J219: =IF(ROUND(O219,2)>P219,"Reduzir Valor ",ROUND(O219,2)) -> 0 | K219: =IF(J219="Reduzir Valor ","Reduzir Valor ",ROUND(F219*J219,2)) -> 0 | L219: + | M219: 0 | O219: =ROUND(M219*(1+N219),2) -> 0 | R219: =IF(P219="","",O219/P219) -> 
B220: 9.1.1 | C220: Impermeabilização com tinta betuminosa 3 demãos | D220: 13.02.00.42 | E220: m2 | F220: 15 | G220: =ROUND(M220,2) -> 30.71 | H220: =ROUND(F220*G220,2) -> 460.65 | I220: =ROUND(N220,4) -> 0.24 | J220: =IF(ROUND(O220,2)>P220,"Reduzir Valor ",ROUND(O220,2)) -> 38.08 | K220: =IF(J220="Reduzir Valor ","Reduzir Valor ",ROUND(F220*J220,2)) -> 571.2 | L220: + | M220: 30.71 | N220: =$N$2 -> 0.24 | O220: =ROUND(M220*(1+N220),2) -> 38.08 | P220: 38.08 | Q220: 571.2 | R220: =IF(P220="","",O220/P220) -> 1
B225: RAZÃO SOCIAL DO PROPONENTE: | F225: RESPONSÁVEL PROPONENTE: | J225: DATA
B226: MUNICÍPIO: SÃO LOURENÇO DO SUL | F226: III - ADUTORA
B227: OBRA: ADUTORA / RESERVATÓRIO / REDE DE DISTRIBUIÇÃO
B228: ITEM | C228: DISCRIMINAÇÃO | D228: CÓDIGO | E228: UN | F228: QTDE | G228: CUSTO | I228: B.D.I. APLICADO | J228: PREÇO | M228: CUSTO PROPOSTO | N228: B.D.I. (%) | O228: PREÇO PROPOSTO | P228: PREÇO MÁXIMO ADMISSÍVEL PARA ESTA LICITAÇÃO | R228: PERCENTUAL
G229: (SEM B.D.I.) | J229: (COM B.D.I.)
G230: UNITÁRIO | H230: TOTAL | J230: UNITÁRIO | K230: TOTAL | P230: UNITÁRIO | Q230: TOTAL
B232: 9.2 | C232: Pinturas | D232: 13.03.00.00 | E232: 0 | G232: =ROUND(M232,2) -> 0 | H232: =ROUND(F232*G232,2) -> 0 | I232: =ROUND(N232,4) -> 0 | J232: =IF(ROUND(O232,2)>P232,"Reduzir Valor ",ROUND(O232,2)) -> 0 | K232: =IF(J232="Reduzir Valor ","Reduzir Valor ",ROUND(F232*J232,2)) -> 0 | L232: + | M232: 0 | O232: =ROUND(M232*(1+N232),2) -> 0 | R232: =IF(P232="","",O232/P232) -> 
B233: 9.2.1 | C233: Pintura acrílica 2 demãos e selador | D233: 13.03.00.18 | E233: m2 | F233: 7 | G233: =ROUND(M233,2) -> 12.85 | H233: =ROUND(F233*G233,2) -> 89.95 | I233: =ROUND(N233,4) -> 0.24 | J233: =IF(ROUND(O233,2)>P233,"Reduzir Valor ",ROUND(O233,2)) -> 15.93 | K233: =IF(J233="Reduzir Valor ","Reduzir Valor ",ROUND(F233*J233,2)) -> 111.51 | L233: + | M233: 12.85 | N233: =$N$2 -> 0.24 | O233: =ROUND(M233*(1+N233),2) -> 15.93 | P233: 15.93 | Q233: 111.51 | R233: =IF(P233="","",O233/P233) -> 1
B235: 10 | C235: FORNECIMENTO DE MATERIAIS | D235: 18.00.00.00 | E235: 0 | G235: =ROUND(M235,2) -> 0 | H235: =ROUND(F235*G235,2) -> 0 | I235: =ROUND(N235,4) -> 0 | J235: =IF(ROUND(O235,2)>P235,"Reduzir Valor ",ROUND(O235,2)) -> 0 | K235: =IF(J235="Reduzir Valor ","Reduzir Valor ",ROUND(F235*J235,2)) -> 0 | L235: + | M235: 0 | O235: =ROUND(M235*(1+N235),2) -> 0 | R235: =IF(P235="","",O235/P235) -> 
B236: 10.1 | C236: Tubos e Peças de PVC DEFOFO | D236: 18.01.00.00 | E236: 0 | G236: =ROUND(M236,2) -> 0 | H236: =ROUND(F236*G236,2) -> 0 | I236: =ROUND(N236,4) -> 0 | J236: =IF(ROUND(O236,2)>P236,"Reduzir Valor ",ROUND(O236,2)) -> 0 | K236: =IF(J236="Reduzir Valor ","Reduzir Valor ",ROUND(F236*J236,2)) -> 0 | L236: + | M236: 0 | O236: =ROUND(M236*(1+N236),2) -> 0 | R236: =IF(P236="","",O236/P236) -> 
B237: 10.1.1 | C237: Tubo de PVC DEFOFO, JEI/JERI, 1 MPA, DN 150, L=6m | D237: 18.01.01.15 | E237: br | F237: 753 | G237: =ROUND(M237,2) -> 429.84 | H237: =ROUND(F237*G237,2) -> 323669.52 | I237: =ROUND(N237,4) -> 0.165 | J237: =IF(ROUND(O237,2)>P237,"Reduzir Valor ",ROUND(O237,2)) -> 500.76 | K237: =IF(J237="Reduzir Valor ","Reduzir Valor ",ROUND(F237*J237,2)) -> 377072.28 | L237: + | M237: 429.84 | N237: =$N$3 -> 0.165 | O237: =ROUND(M237*(1+N237),2) -> 500.76 | P237: 500.76 | Q237: 377072.28 | R237: =IF(P237="","",O237/P237) -> 1
B239: 10.2 | C239: Tubos PVC-O para água
B240: 10.2.1 | C240: Tubo com ponta e bolsas PVC-O Classe 12,5, DN 150 | D240: *** | E240: br | F240: 288 | G240: =ROUND(M240,2) -> 279.28 | H240: =ROUND(F240*G240,2) -> 80432.64 | I240: =ROUND(N240,4) -> 0.165 | J240: =IF(ROUND(O240,2)>P240,"Reduzir Valor ",ROUND(O240,2)) -> 325.36 | K240: =IF(J240="Reduzir Valor ","Reduzir Valor ",ROUND(F240*J240,2)) -> 93703.68 | L240: + | M240: 279.28 | N240: =$N$3 -> 0.165 | O240: =ROUND(M240*(1+N240),2) -> 325.36 | P240: 325.36 | Q240: 93703.68 | R240: =IF(P240="","",O240/P240) -> 1
B241: 10.2.2 | C241: Tubo com ponta e bolsas PVC-O Classe 16, DN 150 | D241: *** | E241: br | F241: 1316 | G241: =ROUND(M241,2) -> 816.13 | H241: =ROUND(F241*G241,2) -> 1074027.08 | I241: =ROUND(N241,4) -> 0.165 | J241: =IF(ROUND(O241,2)>P241,"Reduzir Valor ",ROUND(O241,2)) -> 950.79 | K241: =IF(J241="Reduzir Valor ","Reduzir Valor ",ROUND(F241*J241,2)) -> 1251239.64 | L241: + | M241: 816.13 | N241: =$N$3 -> 0.165 | O241: =ROUND(M241*(1+N241),2) -> 950.79 | P241: 950.79 | Q241: 1251239.64 | R241: =IF(P241="","",O241/P241) -> 1
B243: 10.3 | C243: Materiais em F°F°
B244: 10.3.1 | C244: Curva 90º com bolsas junta elástica, F°F°, DN 150 | D244: *** | E244: pç | F244: 1 | G244: =ROUND(M244,2) -> 250.24 | H244: =ROUND(F244*G244,2) -> 250.24 | I244: =ROUND(N244,4) -> 0.165 | J244: =IF(ROUND(O244,2)>P244,"Reduzir Valor ",ROUND(O244,2)) -> 291.53 | K244: =IF(J244="Reduzir Valor ","Reduzir Valor ",ROUND(F244*J244,2)) -> 291.53 | L244: + | M244: 250.24 | N244: =$N$3 -> 0.165 | O244: =ROUND(M244*(1+N244),2) -> 291.53 | P244: 291.53 | Q244: 291.53 | R244: =IF(P244="","",O244/P244) -> 1
B245: 10.3.2 | C245: Curva 45º com bolsas e junta elástica JGS em FºFº linha clássica, DN 150 | D245: *** | E245: pç | F245: 14 | G245: =ROUND(M245,2) -> 204.13 | H245: =ROUND(F245*G245,2) -> 2857.82 | I245: =ROUND(N245,4) -> 0.165 | J245: =IF(ROUND(O245,2)>P245,"Reduzir Valor ",ROUND(O245,2)) -> 237.81 | K245: =IF(J245="Reduzir Valor ","Reduzir Valor ",ROUND(F245*J245,2)) -> 3329.34 | L245: + | M245: 204.13 | N245: =$N$3 -> 0.165 | O245: =ROUND(M245*(1+N245),2) -> 237.81 | P245: 237.81 | Q245: 3329.34 | R245: =IF(P245="","",O245/P245) -> 1
B246: 10.3.3 | C246: Curva 22º30' com bolsas e junta elástica em FºFº linha clássica, DN 150 | D246: *** | E246: pç | F246: 5 | G246: =ROUND(M246,2) -> 197.95 | H246: =ROUND(F246*G246,2) -> 989.75 | I246: =ROUND(N246,4) -> 0.165 | J246: =IF(ROUND(O246,2)>P246,"Reduzir Valor ",ROUND(O246,2)) -> 230.61 | K246: =IF(J246="Reduzir Valor ","Reduzir Valor ",ROUND(F246*J246,2)) -> 1153.05 | L246: + | M246: 197.95 | N246: =$N$3 -> 0.165 | O246: =ROUND(M246*(1+N246),2) -> 230.61 | P246: 230.61 | Q246: 1153.05 | R246: =IF(P246="","",O246/P246) -> 1
B247: 10.3.4 | C247: Curva 11º15' com bolsas e junta elástica em FºFº linha clássica, DN 150 | D247: *** | E247: pç | F247: 14 | G247: =ROUND(M247,2) -> 230.6 | H247: =ROUND(F247*G247,2) -> 3228.4 | I247: =ROUND(N247,4) -> 0.165 | J247: =IF(ROUND(O247,2)>P247,"Reduzir Valor ",ROUND(O247,2)) -> 268.65 | K247: =IF(J247="Reduzir Valor ","Reduzir Valor ",ROUND(F247*J247,2)) -> 3761.1 | L247: + | M247: 230.6 | N247: =$N$3 -> 0.165 | O247: =ROUND(M247*(1+N247),2) -> 268.65 | P247: 268.65 | Q247: 3761.1 | R247: =IF(P247="","",O247/P247) -> 1
B248: 10.3.5 | C248: Tê com bolsas junta elástica em FºFº linha clássica, DN 150 x 150 | D248: *** | E248: pç | F248: 1 | G248: =ROUND(M248,2) -> 328.1 | H248: =ROUND(F248*G248,2) -> 328.1 | I248: =ROUND(N248,4) -> 0.165 | J248: =IF(ROUND(O248,2)>P248,"Reduzir Valor ",ROUND(O248,2)) -> 382.24 | K248: =IF(J248="Reduzir Valor ","Reduzir Valor ",ROUND(F248*J248,2)) -> 382.24 | L248: + | M248: 328.1 | N248: =$N$3 -> 0.165 | O248: =ROUND(M248*(1+N248),2) -> 382.24 | P248: 382.24 | Q248: 382.24 | R248: =IF(P248="","",O248/P248) -> 1
B249: 10.3.6 | C249: Tê com flanges, F°F°, Linha Clássica, PN10 DN 150 x 50 | D249: *** | E249: pç | F249: 1 | G249: =ROUND(M249,2) -> 512.85 | H249: =ROUND(F249*G249,2) -> 512.85 | I249: =ROUND(N249,4) -> 0.165 | J249: =IF(ROUND(O249,2)>P249,"Reduzir Valor ",ROUND(O249,2)) -> 597.47 | K249: =IF(J249="Reduzir Valor ","Reduzir Valor ",ROUND(F249*J249,2)) -> 597.47 | L249: + | M249: 512.85 | N249: =$N$3 -> 0.165 | O249: =ROUND(M249*(1+N249),2) -> 597.47 | P249: 597.47 | Q249: 597.47 | R249: =IF(P249="","",O249/P249) -> 1
B250: 10.3.7 | C250: Curva 45° com flanges, linha clássica, F°F° ,PN 10 DN 150 | D250: *** | E250: pç | F250: 3 | G250: =ROUND(M250,2) -> 335.08 | H250: =ROUND(F250*G250,2) -> 1005.24 | I250: =ROUND(N250,4) -> 0.165 | J250: =IF(ROUND(O250,2)>P250,"Reduzir Valor ",ROUND(O250,2)) -> 390.37 | K250: =IF(J250="Reduzir Valor ","Reduzir Valor ",ROUND(F250*J250,2)) -> 1171.11 | L250: + | M250: 335.08 | N250: =$N$3 -> 0.165 | O250: =ROUND(M250*(1+N250),2) -> 390.37 | P250: 390.37 | Q250: 1171.11 | R250: =IF(P250="","",O250/P250) -> 1
B251: 10.3.8 | C251: Tubo cilíndrico para junta elástica JGS, F°F°, Linha Clássica, DN 150, L=1.500 mm | D251: *** | E251: pç | F251: 1 | G251: =ROUND(M251,2) -> 1159.92 | H251: =ROUND(F251*G251,2) -> 1159.92 | I251: =ROUND(N251,4) -> 0.165 | J251: =IF(ROUND(O251,2)>P251,"Reduzir Valor ",ROUND(O251,2)) -> 1351.31 | K251: =IF(J251="Reduzir Valor ","Reduzir Valor ",ROUND(F251*J251,2)) -> 1351.31 | L251: + | M251: 1159.92 | N251: =$N$3 -> 0.165 | O251: =ROUND(M251*(1+N251),2) -> 1351.31 | P251: 1351.31 | Q251: 1351.31 | R251: =IF(P251="","",O251/P251) -> 1
B252: 10.3.9 | C252: Tubo cilíndrico para junta elástica JGS, F°F°, Linha Clássica, DN 150, L=3.270 mm | D252: *** | E252: pç | F252: 1 | G252: =ROUND(M252,2) -> 2147.57 | H252: =ROUND(F252*G252,2) -> 2147.57 | I252: =ROUND(N252,4) -> 0.165 | J252: =IF(ROUND(O252,2)>P252,"Reduzir Valor ",ROUND(O252,2)) -> 2501.92 | K252: =IF(J252="Reduzir Valor ","Reduzir Valor ",ROUND(F252*J252,2)) -> 2501.92 | L252: + | M252: 2147.57 | N252: =$N$3 -> 0.165 | O252: =ROUND(M252*(1+N252),2) -> 2501.92 | P252: 2501.92 | Q252: 2501.92 | R252: =IF(P252="","",O252/P252) -> 1
B253: 10.3.10 | C253: Tubo cilíndrico para junta elástica JGS, F°F°, Linha Clássica, DN 150, L=4.080 mm | D253: *** | E253: pç | F253: 1 | G253: =ROUND(M253,2) -> 2722.75 | H253: =ROUND(F253*G253,2) -> 2722.75 | I253: =ROUND(N253,4) -> 0.165 | J253: =IF(ROUND(O253,2)>P253,"Reduzir Valor ",ROUND(O253,2)) -> 3172 | K253: =IF(J253="Reduzir Valor ","Reduzir Valor ",ROUND(F253*J253,2)) -> 3172 | L253: + | M253: 2722.75 | N253: =$N$3 -> 0.165 | O253: =ROUND(M253*(1+N253),2) -> 3172 | P253: 3172 | Q253: 3172 | R253: =IF(P253="","",O253/P253) -> 1
B254: 10.3.11 | C254: Tubo classe K7 ponta e bolsa com junta elástica JGS, F°F°, Linha Clássica, DN 150, L=6.000 mm | D254: *** | E254: pç | F254: 11 | G254: =ROUND(M254,2) -> 1195.86 | H254: =ROUND(F254*G254,2) -> 13154.46 | I254: =ROUND(N254,4) -> 0.165 | J254: =IF(ROUND(O254,2)>P254,"Reduzir Valor ",ROUND(O254,2)) -> 1393.18 | K254: =IF(J254="Reduzir Valor ","Reduzir Valor ",ROUND(F254*J254,2)) -> 15324.98 | L254: + | M254: 1195.86 | N254: =$N$3 -> 0.165 | O254: =ROUND(M254*(1+N254),2) -> 1393.18 | P254: 1393.18 | Q254: 15324.98 | R254: =IF(P254="","",O254/P254) -> 1
B255: 10.3.12 | C255: Tubo com flange e ponta para junta elástica JGS, F°F°, Linha Clássica, PN10 DN 150,L=1.500 mm | D255: *** | E255: pç | F255: 7 | G255: =ROUND(M255,2) -> 1084.16 | H255: =ROUND(F255*G255,2) -> 7589.12 | I255: =ROUND(N255,4) -> 0.165 | J255: =IF(ROUND(O255,2)>P255,"Reduzir Valor ",ROUND(O255,2)) -> 1263.05 | K255: =IF(J255="Reduzir Valor ","Reduzir Valor ",ROUND(F255*J255,2)) -> 8841.35 | L255: + | M255: 1084.16 | N255: =$N$3 -> 0.165 | O255: =ROUND(M255*(1+N255),2) -> 1263.05 | P255: 1263.05 | Q255: 8841.35 | R255: =IF(P255="","",O255/P255) -> 1
B256: 10.3.13 | C256: Tubo com flange e ponta para junta elástica JGS, F°F°, Linha Clássica, PN10 DN 150, L=2.800 mm | D256: *** | E256: pç | F256: 1 | G256: =ROUND(M256,2) -> 1383.32 | H256: =ROUND(F256*G256,2) -> 1383.32 | I256: =ROUND(N256,4) -> 0.165 | J256: =IF(ROUND(O256,2)>P256,"Reduzir Valor ",ROUND(O256,2)) -> 1611.57 | K256: =IF(J256="Reduzir Valor ","Reduzir Valor ",ROUND(F256*J256,2)) -> 1611.57 | L256: + | M256: 1383.32 | N256: =$N$3 -> 0.165 | O256: =ROUND(M256*(1+N256),2) -> 1611.57 | P256: 1611.57 | Q256: 1611.57 | R256: =IF(P256="","",O256/P256) -> 1
B257: 10.3.14 | C257: Tubo flangeado, F°F°, Linha Clássica, PN10, DN 150, L=5.400 | D257: *** | E257: pç | F257: 1 | G257: =ROUND(M257,2) -> 2775.31 | H257: =ROUND(F257*G257,2) -> 2775.31 | I257: =ROUND(N257,4) -> 0.165 | J257: =IF(ROUND(O257,2)>P257,"Reduzir Valor ",ROUND(O257,2)) -> 3233.24 | K257: =IF(J257="Reduzir Valor ","Reduzir Valor ",ROUND(F257*J257,2)) -> 3233.24 | L257: + | M257: 2775.31 | N257: =$N$3 -> 0.165 | O257: =ROUND(M257*(1+N257),2) -> 3233.24 | P257: 3233.24 | Q257: 3233.24 | R257: =IF(P257="","",O257/P257) -> 1
B258: 10.3.15 | C258: Tubo com flange e bolsa junta elástica, F°F°, PN16 DN150, L=1.000mm | D258: *** | E258: pç | F258: 2 | G258: =ROUND(M258,2) -> 963.42 | H258: =ROUND(F258*G258,2) -> 1926.84 | I258: =ROUND(N258,4) -> 0.165 | J258: =IF(ROUND(O258,2)>P258,"Reduzir Valor ",ROUND(O258,2)) -> 1122.38 | K258: =IF(J258="Reduzir Valor ","Reduzir Valor ",ROUND(F258*J258,2)) -> 2244.76 | L258: + | M258: 963.42 | N258: =$N$3 -> 0.165 | O258: =ROUND(M258*(1+N258),2) -> 1122.38 | P258: 1122.38 | Q258: 2244.76 | R258: =IF(P258="","",O258/P258) -> 1
B259: 10.3.16 | C259: Tê com flanges, F°F°, PN16 DN150 | D259: *** | E259: pç | F259: 1 | G259: =ROUND(M259,2) -> 528.28 | H259: =ROUND(F259*G259,2) -> 528.28 | I259: =ROUND(N259,4) -> 0.165 | J259: =IF(ROUND(O259,2)>P259,"Reduzir Valor ",ROUND(O259,2)) -> 615.45 | K259: =IF(J259="Reduzir Valor ","Reduzir Valor ",ROUND(F259*J259,2)) -> 615.45 | L259: + | M259: 528.28 | N259: =$N$3 -> 0.165 | O259: =ROUND(M259*(1+N259),2) -> 615.45 | P259: 615.45 | Q259: 615.45 | R259: =IF(P259="","",O259/P259) -> 1
B262: RAZÃO SOCIAL DO PROPONENTE: | F262: RESPONSÁVEL PROPONENTE: | J262: DATA
B263: MUNICÍPIO: SÃO LOURENÇO DO SUL | F263: III - ADUTORA
B264: OBRA: ADUTORA / RESERVATÓRIO / REDE DE DISTRIBUIÇÃO
B265: ITEM | C265: DISCRIMINAÇÃO | D265: CÓDIGO | E265: UN | F265: QTDE | G265: CUSTO | I265: B.D.I. APLICADO | J265: PREÇO | M265: CUSTO PROPOSTO | N265: B.D.I. (%) | O265: PREÇO PROPOSTO | P265: PREÇO MÁXIMO ADMISSÍVEL PARA ESTA LICITAÇÃO | R265: PERCENTUAL
G266: (SEM B.D.I.) | J266: (COM B.D.I.)
G267: UNITÁRIO | H267: TOTAL | J267: UNITÁRIO | K267: TOTAL | P267: UNITÁRIO | Q267: TOTAL
B269: 10.4 | C269: Válvulas
B270: 10.4.1 | C270: Válvula FºFº de gaveta c/ flanges sem volante, PN 10 DN 50 | D270: *** | E270: pç | F270: 1 | G270: =ROUND(M270,2) -> 357.14 | H270: =ROUND(F270*G270,2) -> 357.14 | I270: =ROUND(N270,4) -> 0.165 | J270: =IF(ROUND(O270,2)>P270,"Reduzir Valor ",ROUND(O270,2)) -> 416.07 | K270: =IF(J270="Reduzir Valor ","Reduzir Valor ",ROUND(F270*J270,2)) -> 416.07 | L270: + | M270: 357.14 | N270: =$N$3 -> 0.165 | O270: =ROUND(M270*(1+N270),2) -> 416.07 | P270: 416.07 | Q270: 416.07 | R270: =IF(P270="","",O270/P270) -> 1
B271: 10.4.2 | C271: Válvula gaveta com flanges PN 10 corpo curto, cunha de borracha, com cabeçote, DN 150 | D271: *** | E271: pç | F271: 1 | G271: =ROUND(M271,2) -> 943.72 | H271: =ROUND(F271*G271,2) -> 943.72 | I271: =ROUND(N271,4) -> 0.165 | J271: =IF(ROUND(O271,2)>P271,"Reduzir Valor ",ROUND(O271,2)) -> 1099.43 | K271: =IF(J271="Reduzir Valor ","Reduzir Valor ",ROUND(F271*J271,2)) -> 1099.43 | L271: + | M271: 943.72 | N271: =$N$3 -> 0.165 | O271: =ROUND(M271*(1+N271),2) -> 1099.43 | P271: 1099.43 | Q271: 1099.43 | R271: =IF(P271="","",O271/P271) -> 1
B272: 10.4.3 | C272: Válvula FºFº ventosa, tríplice função, PN 10 DN 50 | D272: *** | E272: pç | F272: 1 | G272: =ROUND(M272,2) -> 897.19 | H272: =ROUND(F272*G272,2) -> 897.19 | I272: =ROUND(N272,4) -> 0.165 | J272: =IF(ROUND(O272,2)>P272,"Reduzir Valor ",ROUND(O272,2)) -> 1045.23 | K272: =IF(J272="Reduzir Valor ","Reduzir Valor ",ROUND(F272*J272,2)) -> 1045.23 | L272: + | M272: 897.19 | N272: =$N$3 -> 0.165 | O272: =ROUND(M272*(1+N272),2) -> 1045.23 | P272: 1045.23 | Q272: 1045.23 | R272: =IF(P272="","",O272/P272) -> 1
B274: 10.5 | C274: Materiais em Ferro
B275: 10.5.1 | C275: Abraçadeira de ferro #1/4" para tubo DN150, fixada com vergalhão de aço com rosca 1" e proteção de borracha | D275: *** | E275: pç | F275: 31 | G275: =ROUND(M275,2) -> 297.5 | H275: =ROUND(F275*G275,2) -> 9222.5 | I275: =ROUND(N275,4) -> 0.165 | J275: =IF(ROUND(O275,2)>P275,"Reduzir Valor ",ROUND(O275,2)) -> 346.59 | K275: =IF(J275="Reduzir Valor ","Reduzir Valor ",ROUND(F275*J275,2)) -> 10744.29 | L275: + | M275: 297.5 | N275: =$N$3 -> 0.165 | O275: =ROUND(M275*(1+N275),2) -> 346.59 | P275: 346.59 | Q275: 10744.29 | R275: =IF(P275="","",O275/P275) -> 1
B298: III - ADUTORA | F298: TOTAL SEM B.D.I. | H298: =SUM(H123:H296) -> 2665805.37 | I298: TOTAL COM B.D.I. | K298: =SUM(K123:K296) -> 3190785.27
B299: RAZÃO SOCIAL DO PROPONENTE: | F299: RESPONSÁVEL PROPONENTE: | J299: DATA
B300: MUNICÍPIO: SÃO LOURENÇO DO SUL | F300: IV - RESERVATÓRIO 100M³ E CÂMARA
B301: OBRA: ADUTORA / RESERVATÓRIO / REDE DE DISTRIBUIÇÃO
B302: ITEM | C302: DISCRIMINAÇÃO | D302: CÓDIGO | E302: UN | F302: QTDE | G302: CUSTO | I302: B.D.I. APLICADO | J302: PREÇO | M302: CUSTO PROPOSTO | N302: B.D.I. (%) | O302: PREÇO PROPOSTO | P302: PREÇO MÁXIMO ADMISSÍVEL PARA ESTA LICITAÇÃO | R302: PERCENTUAL
G303: (SEM B.D.I.) | J303: (COM B.D.I.)
G304: UNITÁRIO | H304: TOTAL | J304: UNITÁRIO | K304: TOTAL | P304: UNITÁRIO | Q304: TOTAL
B306: 1 | C306: SERVIÇOS TÉCNICOS | D306: 02.00.00.00 | E306: 0 | G306: =ROUND(M306,2) -> 0 | H306: =ROUND(F306*G306,2) -> 0 | I306: =ROUND(N306,4) -> 0 | J306: =IF(ROUND(O306,2)>P306,"Reduzir Valor ",ROUND(O306,2)) -> 0 | K306: =IF(J306="Reduzir Valor ","Reduzir Valor ",ROUND(F306*J306,2)) -> 0 | L306: + | M306: 0 | O306: =ROUND(M306*(1+N306),2) -> 0 | R306: =IF(P306="","",O306/P306) -> 
B307: 1.1 | C307: Locação e Cadastro | D307: 02.04.00.00 | E307: 0 | G307: =ROUND(M307,2) -> 0 | H307: =ROUND(F307*G307,2) -> 0 | I307: =ROUND(N307,4) -> 0 | J307: =IF(ROUND(O307,2)>P307,"Reduzir Valor ",ROUND(O307,2)) -> 0 | K307: =IF(J307="Reduzir Valor ","Reduzir Valor ",ROUND(F307*J307,2)) -> 0 | L307: + | M307: 0 | O307: =ROUND(M307*(1+N307),2) -> 0 | R307: =IF(P307="","",O307/P307) -> 
B308: 1.1.1 | C308: Locação e nivelamento de obras localizadas | D308: 02.04.01.40 | E308: m2 | F308: 17 | G308: =ROUND(M308,2) -> 5.43 | H308: =ROUND(F308*G308,2) -> 92.31 | I308: =ROUND(N308,4) -> 0.24 | J308: =IF(ROUND(O308,2)>P308,"Reduzir Valor ",ROUND(O308,2)) -> 6.73 | K308: =IF(J308="Reduzir Valor ","Reduzir Valor ",ROUND(F308*J308,2)) -> 114.41 | L308: + | M308: 5.43 | N308: =$N$2 -> 0.24 | O308: =ROUND(M308*(1+N308),2) -> 6.73 | P308: 6.73 | Q308: 114.41 | R308: =IF(P308="","",O308/P308) -> 1
B309: 1.1.2 | C309: Cadastro e desenho para obras localizadas | D309: 02.04.02.40 | E309: m2 | F309: 17 | G309: =ROUND(M309,2) -> 4.57 | H309: =ROUND(F309*G309,2) -> 77.69 | I309: =ROUND(N309,4) -> 0.24 | J309: =IF(ROUND(O309,2)>P309,"Reduzir Valor ",ROUND(O309,2)) -> 5.67 | K309: =IF(J309="Reduzir Valor ","Reduzir Valor ",ROUND(F309*J309,2)) -> 96.39 | L309: + | M309: 4.57 | N309: =$N$2 -> 0.24 | O309: =ROUND(M309*(1+N309),2) -> 5.67 | P309: 5.67 | Q309: 96.39 | R309: =IF(P309="","",O309/P309) -> 1
B311: 2 | C311: SERVIÇOS PRELIMINARES | D311: 03.00.00.00 | E311: 0 | G311: =ROUND(M311,2) -> 0 | H311: =ROUND(F311*G311,2) -> 0 | I311: =ROUND(N311,4) -> 0 | J311: =IF(ROUND(O311,2)>P311,"Reduzir Valor ",ROUND(O311,2)) -> 0 | K311: =IF(J311="Reduzir Valor ","Reduzir Valor ",ROUND(F311*J311,2)) -> 0 | L311: + | M311: 0 | O311: =ROUND(M311*(1+N311),2) -> 0 | R311: =IF(P311="","",O311/P311) -> 
B312: 2.1 | C312: Trânsito e Segurança | D312: 03.02.00.00 | E312: 0 | G312: =ROUND(M312,2) -> 0 | H312: =ROUND(F312*G312,2) -> 0 | I312: =ROUND(N312,4) -> 0 | J312: =IF(ROUND(O312,2)>P312,"Reduzir Valor ",ROUND(O312,2)) -> 0 | K312: =IF(J312="Reduzir Valor ","Reduzir Valor ",ROUND(F312*J312,2)) -> 0 | L312: + | M312: 0 | O312: =ROUND(M312*(1+N312),2) -> 0 | R312: =IF(P312="","",O312/P312) -> 
B313: 2.1.1 | C313: Andaime metálico e plataforma para reservatório elevado 100m³ | D313: ### | E313: cj | F313: 1 | G313: =ROUND(M313,2) -> 7897.74 | H313: =ROUND(F313*G313,2) -> 7897.74 | I313: =ROUND(N313,4) -> 0.24 | J313: =IF(ROUND(O313,2)>P313,"Reduzir Valor ",ROUND(O313,2)) -> 9793.2 | K313: =IF(J313="Reduzir Valor ","Reduzir Valor ",ROUND(F313*J313,2)) -> 9793.2 | L313: + | M313: 7897.74 | N313: =$N$2 -> 0.24 | O313: =ROUND(M313*(1+N313),2) -> 9793.2 | P313: 9793.2 | Q313: 9793.2 | R313: =IF(P313="","",O313/P313) -> 1
B314: 2.1.2 | C314: Escada modular em aço com piso auto acoplável para reservatório elevado - H = 0 a 10 m | D314: 03.02.01.10 | E314: cj | F314: 1 | G314: =ROUND(M314,2) -> 11358.76 | H314: =ROUND(F314*G314,2) -> 11358.76 | I314: =ROUND(N314,4) -> 0.24 | J314: =IF(ROUND(O314,2)>P314,"Reduzir Valor ",ROUND(O314,2)) -> 14084.86 | K314: =IF(J314="Reduzir Valor ","Reduzir Valor ",ROUND(F314*J314,2)) -> 14084.86 | L314: + | M314: 11358.76 | N314: =$N$2 -> 0.24 | O314: =ROUND(M314*(1+N314),2) -> 14084.86 | P314: 14084.86 | Q314: 14084.86 | R314: =IF(P314="","",O314/P314) -> 1
B316: 3 | C316: MOVIMENTO DE SOLO | D316: 04.00.00.00 | E316: 0 | G316: =ROUND(M316,2) -> 0 | H316: =ROUND(F316*G316,2) -> 0 | I316: =ROUND(N316,4) -> 0 | J316: =IF(ROUND(O316,2)>P316,"Reduzir Valor ",ROUND(O316,2)) -> 0 | K316: =IF(J316="Reduzir Valor ","Reduzir Valor ",ROUND(F316*J316,2)) -> 0 | L316: + | M316: 0 | O316: =ROUND(M316*(1+N316),2) -> 0 | R316: =IF(P316="","",O316/P316) -> 
... 753 more rows

Sheet 3 - CONFERÊNCIA
B1: COMPANHIA RIOGRANDENSE DE SANEAMENTO
B2: VERIFICAÇÃO DE PREÇOS
B3: ITEM | C3: DISCRIMINAÇÃO | D3: CÓDIGO | E3: UN | F3: QTDE | G3: CUSTO | I3: B.D.I. APLICADO | J3: PREÇO MÁXIMO ADMISSÍVEL | M3: LINHA ONDE O ITEM SE ENCONTRA
F4: QUANT | G4: (SEM B.D.I.) | J4: (COM B.D.I.)
G5: UNITÁRIO | H5: TOTAL | J5: UNITÁRIO | K5: TOTAL
B8: Não há nenhum Item que apresente preço unitário igual a 'zero'.
B12: Não há nenhum Item idêntido que apresente preço unitário diferente entre si.

Sheet 4 - POB Resumo
A1: NOME DA EMPRESA PARTICIPANTE DO CERTAME
A2: PLANILHA DE ORÇAMENTO BÁSICO
A3: MUNICÍPIO: SÃO LOURENÇO DO SUL
A4: OBRA: ADUTORA / RESERVATÓRIO / REDE DE DISTRIBUIÇÃO
A5: CAPÍTULO | B5: DISCRIMINAÇÃO | C5: TOTAL SEM B.D.I. | D5: TOTAL COM B.D.I. | F5: PREÇO MÁXIMO ADMISSÍVEL PARA ESTA LICITAÇÃO
A9: I | B9: SERVIÇOS PRELIMINARES | C9: ='2 - POB'!H76 -> 98840.68 | D9: ='2 - POB'!K76 -> 122562.59 | F9: 122562.59
A11: II | B11: ADMINISTRAÇÃO LOCAL E GERENCIAMENTO AMBIENTAL | C11: ='2 - POB'!H113 -> 177436.56 | D11: ='2 - POB'!K113 -> 220021.33 | F11: 220021.33
A13: III | B13: ADUTORA | C13: ='2 - POB'!H298 -> 2665805.37 | D13: ='2 - POB'!K298 -> 3190785.27 | F13: 3190785.27
A15: IV | B15: RESERVATÓRIO 100M³ E CÂMARA | C15: ='2 - POB'!H446 -> 322264.15 | D15: ='2 - POB'!K446 -> 386209.24 | F15: 386209.24
A17: V | B17: VENTOSAS E REGISTROS DE DESCARGA | C17: ='2 - POB'!H557 -> 252271 | D17: ='2 - POB'!K557 -> 305799.34 | F17: 305799.34
A19: VI | B19: BOOSTER | C19: ='2 - POB'!H705 -> 71168.41 | D19: ='2 - POB'!K705 -> 84707.34 | F19: 84707.34
A21: VII | B21: REDE DE DISTRIBUIÇÃO | C21: ='2 - POB'!H816 -> 614634.84 | D21: ='2 - POB'!K816 -> 753639.04 | F21: 753639.04
A23: VIII | B23: VÁLVULA REDUTORA DE PRESSÃO | C23: ='2 - POB'!H927 -> 13517.94 | D23: ='2 - POB'!K927 -> 16355.89 | F23: 16355.89
A25: IX | B25: TRAVESSIA BR 116 | C25: ='2 - POB'!H1038 -> 97626.28 | D25: ='2 - POB'!K1038 -> 120006.16 | F25: 120006.16
A27: X | B27: ABRIGO QGBT E CAIXA MEDIÇÃO | C27: ='2 - POB'!H1149 -> 8166.79 | D27: ='2 - POB'!K1149 -> 10121.64 | F27: 10121.64
A29: XI | B29: URBANIZAÇÃO | C29: ='2 - POB'!H1186 -> 41887.22 | D29: ='2 - POB'!K1186 -> 51940.73 | F29: 51940.73
A31: XII | B31: INSTALAÇÕES ELÉTRICAS | C31: ='2 - POB'!H1371 -> 103719.17 | D31: ='2 - POB'!K1371 -> 125302.96 | F31: 125302.96
A50: TOTAL ( R$ ) | C50: =SUM(C8:C49) -> 4467338.41 | D50: =SUM(D8:D49) -> 5387451.53 | F50: =SUM(F8:F49) -> 5387451.53
A51: RAZÃO SOCIAL DO PROPONENTE: | C51: RESPONSÁVEL PROPONENTE:
A53: DATA:

Sheet 5 - ES
B2: NOME DA EMPRESA PARTICIPANTE DO CERTAME
B3: DEMONSTRATIVO DA COMPOSIÇÃO DOS ENCARGOS SOCIAIS SOBRE MÃO DE OBRA
B4: MUNICÍPIO: SÃO LOURENÇO DO SUL
B5: OBRA: ADUTORA / RESERVATÓRIO / REDE DE DISTRIBUIÇÃO
B7: ITEM | C7: DISCRIMINAÇÃO | D7: TOTAL
B10: 1 | C10: GRUPO A
B11: A1 | C11: INSS
B12: A2 | C12: SESI
B13: A3 | C13: SENAI
B14: A4 | C14: INCRA
B15: A5 | C15: SEBRAE
B16: A6 | C16: Salário Educação
B17: A7 | C17: Seguro Contra Acidentes de Trabalho
B18: A8 | C18: FGTS
B19: A9 | C19: SECONCI
C20: TOTAL | D20: =SUM(D11:D19) -> 0
C22: GRUPO B
B23: B1 | C23: Repouso Semanal Remunerado
B24: B2 | C24: Feriados
B25: B3 | C25: Auxílio - enfermidade
B26: B4 | C26: 13º Salário
B27: B5 | C27: Licença Paternidade
B28: B6 | C28: Faltas Justificadas
B29: B7 | C29: Dias de Chuvas
B30: B8 | C30: Auxílio Acidente de Trabalho
B31: B9 | C31: Férias Gozadas
B32: B10 | C32: Salário Maternidade
C33: TOTAL | D33: =SUM(D23:D32) -> 0
C35: GRUPO C
B36: C1 | C36: Aviso Prévio Indenizado
B37: C2 | C37: Aviso Prévio Trabalhado
B38: C3 | C38: Férias Indenizadas
B39: C4 | C39: Depósito Rescisão sem Justa Causa
B40: C5 | C40: Indenização Adicional
C41: TOTAL | D41: =SUM(D36:D40) -> 0
C43: GRUPO D
B44: D1 | C44: Reincidência do Grupo A sobre o Grupo B
B45: D2 | C45: Reincidência do Grupo A sobre Aviso Prévio Trabalhado e Reincidência do FGTS
C46: sobre Aviso Prévio Indenizado
C47: TOTAL | D47: =SUM(D42:D46) -> 0
B51: Total ( % ) | D51: =SUM(D47,D41,D33,D20) -> 0
